Workbook

Sheet OVERALL STATS
A1: OVERALL TITLE COMPANY MARKET STATISTICS Washoe County, NV)
A2: Reporting Period: JANUARY THROUGH DECEMBER, 2021
A5: OVERALL SALES MARKET (Resales & Subdivision Sales)
A6: TITLE COMPANY | B6: CLOSINGS | C6: DOLLAR VOLUME | D6: CLOSINGS | E6: DOLLAR VOLUME | F6: CLOSINGS | G6: DOLLAR VOLUME
A7: First Centennial Title | B7: 4504 | C7: 3117962934 | D7: =B7/$B$20 -> 0.3404126672 | E7: =C7/$C$20 -> 0.2956072499 | F7: 1 | G7: =RANK(C7,$C$7:$C$19) -> 1
A8: Stewart Title | B8: 2944 | C8: 1632211790 | D8: 0.222507747 | E8: 0.1547464318 | F8: 2 | G8: =RANK(C8,$C$7:$C$19) -> 4
A9: Ticor Title | B9: 2158 | C9: 2567235303 | D9: =B9/$B$20 -> 0.1631018064 | E9: =C9/$C$20 -> 0.2433939671 | F9: 3 | G9: 2
A10: First American Title | B10: 1488 | C10: 1963419552 | D10: 0.1124631547 | E10: 0.1861475158 | F10: 4 | G10: 3
A11: Westminster Title - Las Vegas | B11: 546 | C11: 429831144 | D11: 0.04126672209 | E11: 0.04075135116 | F11: 5 | G11: 5
A12: Calatlantic Title West | B12: 438 | C12: 237930391 | D12: 0.03310407377 | E12: 0.02255766026 | F12: 6 | G12: 6
A13: DHI Title of Nevada | B13: 342 | C13: 159283940.2 | D13: 0.02584838637 | E13: 0.01510136218 | F13: 7 | G13: 8
A14: Acme Title and Escrow | B14: 225 | C14: 104275227.5 | D14: 0.01700551735 | E14: 0.009886106375 | F14: 8 | G14: 9
A15: Signature Title Company | B15: 198 | C15: 162091834 | D15: 0.01496485526 | E15: 0.01536757245 | F15: 9 | G15: 7
A16: Toiyabe Title | B16: 173 | C16: 75860799 | D16: =B16/$B$20 -> 0.01307535334 | E16: =C16/$C$20 -> 0.007192196522 | F16: 10 | G16: 10
A17: Archer Title and Escrow | B17: 147 | C17: 71320763 | D17: 0.01111027133 | E17: 0.006761765634 | F17: 11 | G17: 11
A18: True Title and Escrow | B18: 67 | C18: 25855125 | D18: =B18/$B$20 -> 0.005063865165 | E18: =C18/$C$20 -> 0.002451267882 | F18: 12 | G18: 12
A19: Driggs Title Agency | B19: 1 | C19: 375000 | D19: 7.558007709e-05 | E19: 3.555293025e-05 | F19: 13 | G19: 13
A20: GRAND TOTAL | B20: =SUM(B7:B19) -> 13231 | C20: =SUM(C7:C19) -> 1.05476538e+10 | D20: =SUM(D7:D19) -> 1 | E20: =SUM(E7:E19) -> 1
A22: OVERALL LOAN ONLY MARKET (Refi's, Construction, Commercial, Credit Lines, Homequity, etc.)
D23: % OF | E23: % OF | F23: RANK BY | G23: RANK BY
A24: TITLECOMPANY | B24: CLOSINGS | C24: DOLLAR VOLUME | D24: CLOSINGS | E24: DOLLAR VOLUME | F24: CLOSINGS | G24: DOLLAR VOLUME
A25: Stewart Title | B25: 3557 | C25: 1204506895 | D25: =B25/$B$35 -> 0.3174759015 | E25: =C25/$C$35 -> 0.2186497475 | F25: 1 | G25: =RANK(C25,$C$25:$C$34) -> 3
A26: First Centennial Title | B26: 2742 | C26: 1389517717 | D26: 0.2447340236 | E26: 0.2522340878 | F26: 2 | G26: =RANK(C26,$C$25:$C$34) -> 2
A27: First American Title | B27: 2133 | C27: 1449636769 | D27: 0.1903784363 | E27: 0.2631472803 | F27: 3 | G27: 1
A28: Ticor Title | B28: 1723 | C28: 1134018806 | D28: 0.1537843627 | E28: 0.2058543015 | F28: 4 | G28: 4
A29: Acme Title and Escrow | B29: 297 | C29: 97636725.66 | D29: 0.02650838986 | E29: 0.01772363902 | F29: 5 | G29: 5
A30: True Title and Escrow | B30: 247 | C30: 64959369 | D30: 0.02204569797 | E30: 0.01179183755 | F30: 6 | G30: 8
A31: Toiyabe Title | B31: 236 | C31: 77062542 | D31: =B31/$B$35 -> 0.02106390575 | E31: =C31/$C$35 -> 0.01398888244 | F31: 7 | G31: 6
A32: Archer Title and Escrow | B32: 215 | C32: 72486118.5 | D32: =B32/$B$35 -> 0.01918957515 | E32: =C32/$C$35 -> 0.01315814095 | F32: 8 | G32: 7
A33: Signature Title Company | B33: 46 | C33: 16700995 | D33: =B33/$B$35 -> 0.004105676544 | E33: =C33/$C$35 -> 0.003031670765 | F33: 9 | G33: 9
A34: Calatlantic Title West | B34: 8 | C34: 2315984 | D34: =B34/$B$35 -> 0.0007140307033 | E34: =C34/$C$35 -> 0.0004204121362 | F34: 10 | G34: 10
A35: GRAND TOTAL | B35: =SUM(B25:B34) -> 11204 | C35: =SUM(C25:C34) -> 5508841922 | D35: =SUM(D25:D34) -> 1 | E35: =SUM(E25:E34) -> 1
A37: OVERALL SALES AND LOAN ONLY MARKETS COMBINED
D38: % OF | E38: % OF | F38: RANK BY | G38: RANK BY
A39: TITLECOMPANY | B39: CLOSINGS | C39: DOLLAR VOLUME | D39: CLOSINGS | E39: DOLLAR VOLUME | F39: CLOSINGS | G39: DOLLAR VOLUME
A40: First Centennial Title | B40: 7247 | C40: 4507614488 | D40: =B40/$B$53 -> 0.2965342281 | E40: =C40/$C$53 -> 0.2807072616 | F40: 1 | G40: =RANK(C40,$C$40:$C$52) -> 1
A41: Stewart Title | B41: 6501 | C41: 2836718685 | D41: 0.2660092475 | E41: 0.1766538679 | F41: 2 | G41: =RANK(C41,$C$40:$C$52) -> 4
A42: Ticor Title | B42: 3882 | C42: 3701641109 | D42: 0.1588444699 | E42: 0.2305160616 | F42: 3 | G42: 2
A43: First American Title | B43: 3623 | C43: 3414101322 | D43: =B43/$B$53 -> 0.1482466549 | E43: =C43/$C$53 -> 0.212609804 | F43: 4 | G43: 3
A44: Westminster Title - Las Vegas | B44: 546 | C44: 429831144 | D44: 0.02234133966 | E44: 0.026767312 | F44: 5 | G44: 5
A45: Acme Title and Escrow | B45: 522 | C45: 201911953.2 | D45: 0.02135930275 | E45: 0.01257386842 | F45: 6 | G45: 7
A46: Calatlantic Title West | B46: 446 | C46: 240246375 | D46: 0.01824951921 | E46: 0.01496110686 | F46: 7 | G46: 6
A47: Toiyabe Title | B47: 409 | C47: 152923341 | D47: 0.01673554564 | E47: 0.00952315075 | F47: 8 | G47: 10
A48: Archer Title and Escrow | B48: 362 | C48: 143806881.5 | D48: =B48/$B$53 -> 0.01481239003 | E48: =C48/$C$53 -> 0.008955432195 | F48: 9 | G48: 11
A49: DHI Title of Nevada | B49: 342 | C49: 159283940.2 | D49: =B49/$B$53 -> 0.01399402594 | E49: =C49/$C$53 -> 0.009919250814 | F49: 10 | G49: 9
A50: True Title and Escrow | B50: 314 | C50: 90814494 | D50: =B50/$B$53 -> 0.01284831622 | E50: 0.005655383351 | F50: 11 | G50: 12
A51: Signature Title Company | B51: 244 | C51: 178792829 | D51: =B51/$B$53 -> 0.0099840419 | E51: =C51/$C$53 -> 0.01113414769 | F51: 12 | G51: 8
A52: Driggs Title Agency | B52: 1 | C52: 375000 | D52: 4.091820451e-05 | E52: 2.335275641e-05 | F52: 13 | G52: 13
A53: GRAND TOTAL | B53: =SUM(B40:B52) -> 24439 | C53: =SUM(C40:C52) -> 1.605806156e+10 | D53: =SUM(D40:D52) -> 1 | E53: =SUM(E40:E52) -> 1
A55: Information provided by Datasource | D55: SEE CHARTS BELOW:
A56: www.datasourcenev.com

Sheet SALES STATS
A1: SALES MARKET Washoe County, NV)
A2: ='OVERALL STATS'!A2 -> Reporting Period: JANUARY THROUGH DECEMBER, 2021
A4: RESALE MARKET (Includes ALL types of real property)
D5: % OF | E5: % OF | F5: RANK BY | G5: RANK BY
A6: TITLE COMPANY | B6: CLOSINGS | C6: DOLLAR VOLUME | D6: CLOSINGS | E6: DOLLAR VOLUME | F6: CLOSINGS | G6: DOLLAR VOLUME
A7: First Centennial Title | B7: 4144 | C7: 2931697655 | D7: =B7/$B$18 -> 0.385811377 | E7: =C7/$C$18 -> 0.3216998757 | F7: 1 | G7: =RANK(C7,$C$7:$D$17) -> 1
A8: Stewart Title | B8: 2576 | C8: 1463987673 | D8: =B8/$B$18 -> 0.2398286938 | E8: =C8/$C$18 -> 0.1606457105 | F8: 2 | G8: =RANK(C8,$C$7:$D$17) -> 4
A9: Ticor Title | B9: 2053 | C9: 2491489809 | D9: =B9/$B$18 -> 0.1911367657 | E9: =C9/$C$18 -> 0.2733951643 | F9: 3 | G9: 2
A10: First American Title | B10: 1150 | C10: 1779078721 | D10: =B10/$B$18 -> 0.1070663812 | E10: =C10/$C$18 -> 0.1952211554 | F10: 4 | G10: 3
A11: Acme Title and Escrow | B11: 225 | C11: 104275227.5 | D11: =B11/$B$18 -> 0.02094777023 | E11: =C11/$C$18 -> 0.0114422876 | F11: 5 | G11: 6
A12: Signature Title Company | B12: 198 | C12: 162091834 | D12: =B12/$B$18 -> 0.0184340378 | E12: =C12/$C$18 -> 0.01778659637 | F12: 6 | G12: 5
A13: Toiyabe Title | B13: 173 | C13: 75860799 | D13: =B13/$B$18 -> 0.01610650777 | E13: =C13/$C$18 -> 0.008324326887 | F13: 7 | G13: 7
A14: Archer Title and Escrow | B14: 147 | C14: 71320763 | D14: =B14/$B$18 -> 0.01368587655 | E14: =C14/$C$18 -> 0.00782614147 | F14: 8 | G14: 8
A15: True Title and Escrow | B15: 67 | C15: 25855125 | D15: =B15/$B$18 -> 0.006237780467 | E15: =C15/$C$18 -> 0.002837124246 | F15: 9 | G15: 9
A16: Calatlantic Title West | B16: 7 | C16: 7112520 | D16: 0.000651708407 | E16: 0.0007804682029 | F16: 10 | G16: 10
A17: Driggs Title Agency | B17: 1 | C17: 375000 | D17: 9.310120101e-05 | E17: 4.114935017e-05 | F17: 11 | G17: 11
A18: GRAND TOTAL | B18: =SUM(B7:B17) -> 10741 | C18: =SUM(C7:C17) -> 9113145126 | D18: =SUM(D7:D17) -> 1 | E18: =SUM(E7:E17) -> 1
A20: SUBDIVISION SALES (Builder/Developer Sales)
D21: % OF | E21: % OF | F21: RANK BY | G21: RANK BY
A22: TITLE COMPANY | B22: CLOSINGS | C22: DOLLAR VOLUME | D22: CLOSINGS | E22: DOLLAR VOLUME | F22: CLOSINGS | G22: DOLLAR VOLUME
A23: Westminster Title - Las Vegas | B23: 546 | C23: 429831144 | D23: =B23/$B$30 -> 0.2192771084 | E23: =C23/$C$30 -> 0.2996364896 | F23: 1 | G23: =RANK(C23,$C$23:$C$29) -> 1
A24: Calatlantic Title West | B24: 431 | C24: 230817871 | D24: =B24/$B$30 -> 0.1730923695 | E24: =C24/$C$30 -> 0.1609037818 | F24: 2 | G24: =RANK(C24,$C$23:$C$29) -> 2
A25: Stewart Title | B25: 368 | C25: 168224116.5 | D25: =B25/$B$30 -> 0.1477911647 | E25: =C25/$C$30 -> 0.1172695009 | F25: 3 | G25: 5
A26: First Centennial Title | B26: 360 | C26: 186265279.2 | D26: =B26/$B$30 -> 0.1445783133 | E26: =C26/$C$30 -> 0.1298460458 | F26: 4 | G26: 3
A27: DHI Title of Nevada | B27: 342 | C27: 159283940.2 | D27: =B27/$B$30 -> 0.1373493976 | E27: =C27/$C$30 -> 0.1110372791 | F27: 5 | G27: 6
A28: First American Title | B28: 338 | C28: 184340831.3 | D28: =B28/$B$30 -> 0.1357429719 | E28: =C28/$C$30 -> 0.1285045077 | F28: 6 | G28: 4
A29: Ticor Title | B29: 105 | C29: 75745494 | D29: =B29/$B$30 -> 0.0421686747 | E29: =C29/$C$30 -> 0.05280239517 | F29: 7 | G29: 7
A30: GRAND TOTAL | B30: =SUM(B23:B29) -> 2490 | C30: =SUM(C23:C29) -> 1434508676 | D30: =SUM(D23:D29) -> 1 | E30: =SUM(E23:E29) -> 1
A32: RESIDENTIAL RESALE MARKET (Residential Properties Only)
D33: % OF | E33: % OF | F33: RANK BY | G33: RANK BY
A34: TITLE COMPANY | B34: CLOSINGS | C34: DOLLAR VOLUME | D34: CLOSINGS | E34: DOLLAR VOLUME | F34: CLOSINGS | G34: DOLLAR VOLUME
A35: First Centennial Title | B35: 3580 | C35: 2303711470 | D35: =B35/$B$46 -> 0.3840789615 | E35: =C35/$C$46 -> 0.3903026335 | F35: 1 | G35: =RANK(C35,$C$35:$C$45) -> 1
A36: Stewart Title | B36: 2333 | C36: 1195295221 | D36: 0.2502950327 | E36: 0.2025109823 | F36: 2 | G36: =RANK(C36,$C$35:$C$45) -> 3
A37: Ticor Title | B37: 1706 | C37: 1322285219 | D37: 0.1830275721 | E37: 0.2240260596 | F37: 3 | G37: 2
A38: First American Title | B38: 930 | C38: 695657363.9 | D38: 0.09977470229 | E38: 0.1178606369 | F38: 4 | G38: 4
A39: Acme Title and Escrow | B39: 210 | C39: 91340327.5 | D39: 0.02252977148 | E39: 0.01547518898 | F39: 5 | G39: 6
A40: Signature Title Company | B40: 187 | C40: 124253057 | D40: 0.02006222508 | E40: 0.02105137557 | F40: 6 | G40: 5
A41: Toiyabe Title | B41: 167 | C41: 74093799 | D41: =B41/$B$46 -> 0.01791653256 | E41: =C41/$C$46 -> 0.01255322346 | F41: 7 | G41: 7
A42: Archer Title and Escrow | B42: 141 | C42: 69670763 | D42: 0.01512713228 | E42: 0.01180385765 | F42: 8 | G42: 8
A43: True Title and Escrow | B43: 65 | C43: 25225125 | D43: 0.006973500697 | E43: 0.004273726481 | F43: 9 | G43: 9
A44: Calatlantic Title West | B44: 1 | C44: 465000 | D44: =B44/$B$46 -> 0.0001072846261 | E44: =C44/$C$46 -> 7.878188171e-05 | F44: 10 | G44: 10
A45: Driggs Title Agency | B45: 1 | C45: 375000 | D45: =B45/$B$46 -> 0.0001072846261 | E45: =C45/$C$46 -> 6.353377557e-05 | F45: 10 | G45: 11
A46: GRAND TOTAL | B46: =SUM(B35:B45) -> 9321 | C46: =SUM(C35:C45) -> 5902372346 | D46: =SUM(D35:D45) -> 1 | E46: =SUM(E35:E45) -> 1
A48: COMMERCIAL/INDUSTRIAL, APARTMENTS, MOBILE HOME PARKS SALES MARKET
D49: % OF | E49: % OF | F49: RANK BY | G49: RANK BY
A50: TITLE COMPANY | B50: CLOSINGS | C50: DOLLAR VOLUME | D50: CLOSINGS | E50: DOLLAR VOLUME | F50: CLOSINGS | G50: DOLLAR VOLUME
A51: First Centennial Title | B51: 168 | C51: 435397892.2 | D51: =B51/$B$60 -> 0.3492723493 | E51: =C51/$C$60 -> 0.1897290335 | F51: 1 | G51: =RANK(C51,$C$51:$C$59) -> 3
A52: Ticor Title | B52: 148 | C52: 999599485.5 | D52: =B52/$B$60 -> 0.3076923077 | E52: =C52/$C$60 -> 0.435585582 | F52: 2 | G52: =RANK(C52,$C$51:$C$59) -> 1
A53: First American Title | B53: 100 | C53: 752731118.5 | D53: =B53/$B$60 -> 0.2079002079 | E53: =C53/$C$60 -> 0.3280101952 | F53: 3 | G53: 2
A54: Stewart Title | B54: 56 | C54: 93477120 | D54: =B54/$B$60 -> 0.1164241164 | E54: =C54/$C$60 -> 0.04073360012 | F54: 4 | G54: 4
A55: Acme Title and Escrow | B55: 5 | C55: 10700000 | D55: =B55/$B$60 -> 0.0103950104 | E55: =C55/$C$60 -> 0.00466263318 | F55: 5 | G55: 5
A56: Calatlantic Title West | B56: 1 | C56: 1300000 | D56: =B56/$B$60 -> 0.002079002079 | E56: =C56/$C$60 -> 0.0005664881434 | F56: 6 | G56: 6
A57: Archer Title and Escrow | B57: 1 | C57: 590000 | D57: =B57/$B$60 -> 0.002079002079 | E57: =C57/$C$60 -> 0.0002570984651 | F57: 6 | G57: 7
A58: Signature Title Company | B58: 1 | C58: 580000 | D58: =B58/$B$60 -> 0.002079002079 | E58: =C58/$C$60 -> 0.000252740864 | F58: 6 | G58: 8
A59: True Title and Escrow | B59: 1 | C59: 465000 | D59: =B59/$B$60 -> 0.002079002079 | E59: =C59/$C$60 -> 0.0002026284513 | F59: 6 | G59: 9
A60: GRAND TOTAL | B60: =SUM(B51:B59) -> 481 | C60: =SUM(C51:C59) -> 2294840616 | D60: =SUM(D51:D59) -> 1 | E60: =SUM(E51:E59) -> 1
A62: VACANT LAND SALES
D63: % OF | E63: % OF | F63: RANK BY | G63: RANK BY
A64: TITLE COMPANY | B64: CLOSINGS | C64: DOLLAR VOLUME | D64: CLOSINGS | E64: DOLLAR VOLUME | F64: CLOSINGS | G64: DOLLAR VOLUME
A65: First Centennial Title | B65: 395 | C65: 183188292 | D65: =B65/$B$75 -> 0.3533094812 | E65: =C65/$C$75 -> 0.1824925399 | F65: 1 | G65: =RANK(C65,$C$65:$C$74) -> 2
A66: Ticor Title | B66: 198 | C66: 159605104.2 | D66: =B66/$B$75 -> 0.1771019678 | E66: =C66/$C$75 -> 0.1589989215 | F66: 2 | G66: =RANK(C66,$C$65:$C$74) -> 5
A67: Stewart Title | B67: 185 | C67: 173455331.9 | D67: =B67/$B$75 -> 0.1654740608 | E67: =C67/$C$75 -> 0.1727965458 | F67: 3 | G67: 3
A68: True Title and Escrow | B68: 185 | C68: 173455331.9 | D68: 0.1654740608 | E68: 0.1727965458 | F68: 4 | G68: 3
A69: First American Title | B69: 119 | C69: 266440238.8 | D69: 0.1064400716 | E69: 0.2654282946 | F69: 5 | G69: 1
A70: Signature Title Company | B70: 10 | C70: 37258777 | D70: 0.008944543828 | E70: 0.03711726757 | F70: 6 | G70: 6
A71: Acme Title and Escrow | B71: 10 | C71: 2234900 | D71: 0.008944543828 | E71: 0.002226411814 | F71: 6 | G71: 8
A72: Toiyabe Title | B72: 6 | C72: 1767000 | D72: 0.005366726297 | E72: 0.001760288906 | F72: 7 | G72: 9
A73: Calatlantic Title West | B73: 5 | C73: 5347520 | D73: 0.004472271914 | E73: 0.005327210034 | F73: 8 | G73: 7
A74: Archer Title and Escrow | B74: 5 | C74: 1060000 | D74: =B74/$B$75 -> 0.004472271914 | E74: =C74/$C$75 -> 0.001055974103 | F74: 8 | G74: 10
A75: GRAND TOTAL | B75: =SUM(B65:B74) -> 1118 | C75: =SUM(C65:C74) -> 1003812496 | D75: =SUM(D65:D74) -> 1 | E75: =SUM(E65:E74) -> 1
A77: INCLINE VILLAGE SALES MARKET
D78: % OF | E78: % OF | F78: RANK BY | G78: RANK BY
A79: TITLE COMPANY | B79: CLOSINGS | C79: DOLLAR VOLUME | D79: CLOSINGS | E79: DOLLAR VOLUME | F79: CLOSINGS | G79: DOLLAR VOLUME
A80: Ticor Title | B80: 189 | C80: 464517976.5 | D80: =B80/$B$60 -> 0.3929313929 | E80: =C80/$C$60 -> 0.2024184047 | F80: 1 | G80: 1
A81: First American Title | B81: 171 | C81: 318338726.6 | D81: 0.3555093555 | E81: 0.1387193186 | F81: 2 | G81: 2
A82: First Centennial Title | B82: 128 | C82: 262559369 | D82: 0.2661122661 | E82: 0.1144128996 | F82: 3 | G82: 3
A83: GRAND TOTAL | B83: =SUM(B80:B82) -> 488 | C83: =SUM(C80:C82) -> 1045416072 | D83: =SUM(D80:D82) -> 1.014553015 | E83: =SUM(E80:E82) -> 0.4555506229
A85: RESIDENTIAL RESALE MARKET (Excluding Incline Village)
D86: % OF | E86: % OF | F86: RANK BY | G86: RANK BY
A87: TITLE COMPANY | B87: CLOSINGS | C87: DOLLAR VOLUME | D87: CLOSINGS | E87: DOLLAR VOLUME | F87: CLOSINGS | G87: DOLLAR VOLUME
A88: First Centennial Title | B88: 3458 | C88: 2045497101 | D88: =B88/$B$75 -> 3.093023256 | E88: =C88/$C$75 -> 2.037728271 | F88: 1 | G88: =RANK(C88,$C$88:$C$98) -> 1
A89: Stewart Title | B89: 2333 | C89: 1195295221 | D89: =B89/$B$75 -> 2.086762075 | E89: =C89/$C$75 -> 1.190755471 | F89: 2 | G89: =RANK(C89,$C$88:$C$98) -> 2
A90: Ticor Title | B90: 1525 | C90: 871972242.6 | D90: 1.364042934 | E90: 0.8686604781 | F90: 3 | G90: 3
A91: First American Title | B91: 767 | C91: 386368637.3 | D91: 0.6860465116 | E91: 0.3849012031 | F91: 4 | G91: 4
A92: Acme Title and Escrow | B92: 210 | C92: 91340327.5 | D92: 0.1878354204 | E92: 0.09099341548 | F92: 5 | G92: 6
A93: Signature Title Company | B93: 187 | C93: 124253057 | D93: 0.1672629696 | E93: 0.1237811419 | F93: 6 | G93: 5
A94: Toiyabe Title | B94: 167 | C94: 74093799 | D94: 0.1493738819 | E94: 0.07381238957 | F94: 7 | G94: 7
A95: Archer Title and Escrow | B95: 141 | C95: 69670763 | D95: 0.126118068 | E95: 0.06940615233 | F95: 8 | G95: 8
A96: True Title and Escrow | B96: 65 | C96: 25225125 | D96: 0.05813953488 | E96: 0.02512931957 | F96: 9 | G96: 9
A97: Calatlantic Title West | B97: 1 | C97: 465000 | D97: =B97/$B$75 -> 0.0008944543828 | E97: =C97/$C$75 -> 0.0004632339226 | F97: 10 | G97: 10
A98: Driggs Title Agency | B98: 1 | C98: 375000 | D98: =B98/$B$75 -> 0.0008944543828 | E98: =C98/$C$75 -> 0.000373575744 | F98: 10 | G98: 11
A99: GRAND TOTAL | B99: =SUM(B88:B98) -> 8855 | C99: =SUM(C88:C98) -> 4884556274 | D99: =SUM(D88:D98) -> 7.92039356 | E99: =SUM(E88:E98) -> 4.866004652
A101: Information provided by Datasource
A102: www.datasourcenev.com

Sheet LOAN ONLY STATS
A1: LOAN ONLY MARKETS Washoe County, NV)
A2: ='OVERALL STATS'!A2 -> Reporting Period: JANUARY THROUGH DECEMBER, 2021
A4: CONVENTIONAL LOANS MARKET (Refi's)
D5: % OF | E5: % OF | F5: RANK BY | G5: RANK BY
A6: TITLECOMPANY | B6: CLOSINGS | C6: DOLLAR VOLUME | D6: CLOSINGS | E6: DOLLAR VOLUME | F6: CLOSINGS | G6: DOLLAR VOLUME
A7: Stewart Title | B7: 3349 | C7: 1034647492 | D7: =B7/$B$17 -> 0.3254616132 | E7: =C7/$C$17 -> 0.299955514 | F7: 1 | G7: =RANK(C7,$C$7:$C$16) -> 1
A8: First Centennial Title | B8: 2383 | C8: 842978627.1 | D8: =B8/$B$17 -> 0.2315840622 | E8: =C8/$C$17 -> 0.2443886342 | F8: 2 | G8: =RANK(C8,$C$7:$C$16) -> 2
A9: First American Title | B9: 1970 | C9: 666251419 | D9: =B9/$B$17 -> 0.1914480078 | E9: =C9/$C$17 -> 0.1931535024 | F9: 3 | G9: 3
A10: Ticor Title | B10: 1561 | C10: 585794284 | D10: 0.1517006803 | E10: 0.1698281076 | F10: 4 | G10: 4
A11: Acme Title and Escrow | B11: 288 | C11: 92249356 | D11: 0.02798833819 | E11: 0.02674408744 | F11: 5 | G11: 5
A12: True Title and Escrow | B12: 246 | C12: 64885369 | D12: 0.02390670554 | E12: 0.01881097124 | F12: 6 | G12: 8
A13: Toiyabe Title | B13: 230 | C13: 74552542 | D13: 0.02235179786 | E13: 0.02161358939 | F13: 7 | G13: 6
A14: Archer Title and Escrow | B14: 212 | C14: 71845496.5 | D14: =B14/$B$17 -> 0.02060252672 | E14: =C14/$C$17 -> 0.02082878758 | F14: 8 | G14: 7
A15: Signature Title Company | B15: 43 | C15: 13815894 | D15: =B15/$B$17 -> 0.004178814383 | E15: =C15/$C$17 -> 0.004005377308 | F15: 9 | G15: 9
A16: Calatlantic Title West | B16: 8 | C16: 2315984 | D16: =B16/$B$17 -> 0.0007774538387 | E16: =C16/$C$17 -> 0.0006714288456 | F16: 10 | G16: 10
A17: GRAND TOTAL | B17: =SUM(B7:B16) -> 10290 | C17: =SUM(C7:C16) -> 3449336464 | D17: =SUM(D7:D16) -> 1 | E17: =SUM(E7:E16) -> 1
A19: COMMERCIAL LOANS MARKET
D20: % OF | E20: % OF | F20: RANK BY | G20: RANK BY
A21: TITLECOMPANY | B21: CLOSINGS | C21: DOLLAR VOLUME | D21: CLOSINGS | E21: DOLLAR VOLUME | F21: CLOSINGS | G21: DOLLAR VOLUME
A22: Ticor Title | B22: 95 | C22: 396635359.9 | D22: =B22/$B$27 -> 0.3392857143 | E22: =C22/$C$27 -> 0.322249709 | F22: 1 | G22: =RANK(C22,$C$22:$C$26) -> 2
A23: First Centennial Title | B23: 78 | C23: 177534418.7 | D23: =B23/$B$27 -> 0.2785714286 | E23: =C23/$C$27 -> 0.1442393204 | F23: 2 | G23: =RANK(C23,$C$22:$C$26) -> 3
A24: First American Title | B24: 61 | C24: 580393151.2 | D24: =B24/$B$27 -> 0.2178571429 | E24: =C24/$C$27 -> 0.4715452604 | F24: 3 | G24: 1
A25: Stewart Title | B25: 41 | C25: 71103103.75 | D25: =B25/$B$27 -> 0.1464285714 | E25: =C25/$C$27 -> 0.05776831016 | F25: 4 | G25: 4
A26: Acme Title and Escrow | B26: 5 | C26: 5166295.66 | D26: =B26/$B$27 -> 0.01785714286 | E26: =C26/$C$27 -> 0.004197400033 | F26: 5 | G26: 5
A27: GRAND TOTAL | B27: =SUM(B22:B26) -> 280 | C27: =SUM(C22:C26) -> 1230832329 | D27: =SUM(D22:D26) -> 1 | E27: =SUM(E22:E26) -> 1
A29: HOME EQUITY & CREDIT LINE LOANS MARKET
D30: % OF | E30: % OF | F30: RANK BY | G30: RANK BY
A31: TITLECOMPANY | B31: CLOSINGS | C31: DOLLAR VOLUME | D31: CLOSINGS | E31: DOLLAR VOLUME | F31: CLOSINGS | G31: DOLLAR VOLUME
A32: First Centennial Title | B32: 159 | C32: 46289637 | D32: =B32/$B$41 -> 0.4076923077 | E32: =C32/$C$41 -> 0.3336532903 | F32: 1 | G32: =RANK(C32,$C$32:$C$40) -> 2
A33: Stewart Title | B33: 129 | C33: 63198126.6 | D33: =B33/$B$41 -> 0.3307692308 | E33: =C33/$C$41 -> 0.4555288018 | F33: 2 | G33: =RANK(C33,$C$32:$C$40) -> 1
A34: First American Title | B34: 51 | C34: 7168188 | D34: =B34/$B$41 -> 0.1307692308 | E34: =C34/$C$41 -> 0.05166792541 | F34: 3 | G34: 4
A35: Ticor Title | B35: 43 | C35: 21524795 | D35: =B35/$B$41 -> 0.1102564103 | E35: =C35/$C$41 -> 0.1551496002 | F35: 4 | G35: 3
A36: Acme Title and Escrow | B36: 3 | C36: 137074 | D36: =B36/$B$41 -> 0.007692307692 | E36: =C36/$C$41 -> 0.000988022246 | F36: 5 | G36: 7
A37: Archer Title and Escrow | B37: 2 | C37: 180622 | D37: =B37/$B$41 -> 0.005128205128 | E37: =C37/$C$41 -> 0.00130191396 | F37: 6 | G37: 5
A38: Toiyabe Title | B38: 1 | C38: 150000 | D38: =B38/$B$41 -> 0.002564102564 | E38: =C38/$C$41 -> 0.00108119218 | F38: 7 | G38: 6
A39: True Title and Escrow | B39: 1 | C39: 74000 | D39: =B39/$B$41 -> 0.002564102564 | E39: =C39/$C$41 -> 0.0005333881422 | F39: 7 | G39: 8
A40: Signature Title Company | B40: 1 | C40: 13300 | D40: =B40/$B$41 -> 0.002564102564 | E40: =C40/$C$41 -> 9.586570664e-05 | F40: 7 | G40: 9
A41: GRAND TOTAL | B41: =SUM(B32:B40) -> 390 | C41: =SUM(C32:C40) -> 138735742.6 | D41: =SUM(D32:D40) -> 1 | E41: =SUM(E32:E40) -> 1
A43: CONSTRUCTION LOANS MARKET
D44: % OF | E44: % OF | F44: RANK BY | G44: RANK BY
A45: TITLECOMPANY | B45: CLOSINGS | C45: DOLLAR VOLUME | D45: CLOSINGS | E45: DOLLAR VOLUME | F45: CLOSINGS | G45: DOLLAR VOLUME
A46: First Centennial Title | B46: 46 | C46: 277672209 | D46: =B46/$B$51 -> 0.4791666667 | E46: =C46/$C$51 -> 0.4609626144 | F46: 1 | G46: 1
A47: First American Title | B47: 27 | C47: 176086943.7 | D47: =B47/$B$51 -> 0.28125 | E47: =C47/$C$51 -> 0.2923212885 | F47: 2 | G47: 2
A48: Ticor Title | B48: 12 | C48: 125634929 | D48: =B48/$B$51 -> 0.125 | E48: =C48/$C$51 -> 0.2085660842 | F48: 3 | G48: 3
A49: Stewart Title | B49: 9 | C49: 20108801 | D49: =B49/$B$51 -> 0.09375 | E49: =C49/$C$51 -> 0.03338254669 | F49: 4 | G49: 4
A50: Signature Title Company | B50: 2 | C50: 2871801 | D50: =B50/$B$51 -> 0.02083333333 | E50: =C50/$C$51 -> 0.004767466293 | F50: 5 | G50: 5
A51: GRAND TOTAL | B51: =SUM(B46:B50) -> 96 | C51: =SUM(C46:C50) -> 602374683.7 | D51: =SUM(D46:D50) -> 1 | E51: =SUM(E46:E50) -> 1
A53: HARD MONEY LOANS MARKET
D54: % OF | E54: % OF | F54: RANK BY | G54: RANK BY
A55: TITLECOMPANY | B55: CLOSINGS | C55: DOLLAR VOLUME | D55: CLOSINGS | E55: DOLLAR VOLUME | F55: CLOSINGS | G55: DOLLAR VOLUME
A56: First Centennial Title | B56: 76 | C56: 45042824.96 | D56: =B56/$B$63 -> 0.5135135135 | E56: =C56/$C$63 -> 0.5144065194 | F56: 1 | G56: 1
A57: Stewart Title | B57: 29 | C57: 15449372 | D57: =B57/$B$63 -> 0.1959459459 | E57: =C57/$C$63 -> 0.1764378163 | F57: 2 | G57: 3
A58: First American Title | B58: 24 | C58: 19737067.34 | D58: =B58/$B$63 -> 0.1621621622 | E58: =C58/$C$63 -> 0.225404959 | F58: 3 | G58: 2
A59: Ticor Title | B59: 12 | C59: 4429438.08 | D59: =B59/$B$63 -> 0.08108108108 | E59: =C59/$C$63 -> 0.0505858997 | F59: 4 | G59: 4
A60: Toiyabe Title | B60: 5 | C60: 2360000 | D60: =B60/$B$63 -> 0.03378378378 | E60: =C60/$C$63 -> 0.02695211472 | F60: 5 | G60: 5
A61: Archer Title and Escrow | B61: 1 | C61: 460000 | D61: =B61/$B$63 -> 0.006756756757 | E61: =C61/$C$63 -> 0.005253378293 | F61: 6 | G61: 6
A62: Acme Title and Escrow | B62: 1 | C62: 84000 | D62: =B62/$B$63 -> 0.006756756757 | E62: =C62/$C$63 -> 0.0009593125579 | F62: 6 | G62: 7
A63: GRAND TOTAL | B63: =SUM(B56:B62) -> 148 | C63: =SUM(C56:C62) -> 87562702.38 | D63: =SUM(D56:D62) -> 1 | E63: =SUM(E56:E62) -> 1
A65: CONVENTIONAL LOANS MARKET (Refi's) Excluding Incline Village
D66: % OF | E66: % OF | F66: RANK BY | G66: RANK BY
A67: TITLECOMPANY | B67: CLOSINGS | C67: DOLLAR VOLUME | D67: CLOSINGS | E67: DOLLAR VOLUME | F67: CLOSINGS | G67: DOLLAR VOLUME
A68: Stewart Title | B68: 3320 | C68: 1015781850 | D68: =B68/$B$63 -> 22.43243243 | E68: =C68/$C$63 -> 11.60062244 | F68: 1 | G68: =RANK(C68,$C$68:$C$77) -> 1
A69: First Centennial Title | B69: 2278 | C69: 739935771 | D69: 15.39189189 | E69: 8.4503533 | F69: 2 | G69: =RANK(C69,$C$68:$C$77) -> 2
A70: First American Title | B70: 1881 | C70: 579656632 | D70: 12.70945946 | E70: 6.619903409 | F70: 3 | G70: 3
A71: Ticor Title | B71: 1448 | C71: 457781625 | D71: 9.783783784 | E71: 5.228043591 | F71: 4 | G71: 4
A72: Acme Title and Escrow | B72: 287 | C72: 91602156 | D72: 1.939189189 | E72: 1.046132126 | F72: 5 | G72: 5
A73: True Title and Escrow | B73: 244 | C73: 64090369 | D73: 1.648648649 | E73: 0.7319368551 | F73: 6 | G73: 8
A74: Toiyabe Title | B74: 228 | C74: 72504292 | D74: 1.540540541 | E74: 0.8280271169 | F74: 7 | G74: 6
A75: Archer Title and Escrow | B75: 210 | C75: 70258434 | D75: 1.418918919 | E75: 0.8023785481 | F75: 8 | G75: 7
A76: Signature Title Company | B76: 41 | C76: 12903894 | D76: 0.277027027 | E76: 0.147367471 | F76: 9 | G76: 9
A77: Calatlantic Title West | B77: 8 | C77: 2315984 | D77: 0.05405405405 | E77: 0.02644943494 | F77: 10 | G77: 10
A78: GRAND TOTAL | B78: =SUM(B68:B77) -> 9945 | C78: =SUM(C68:C77) -> 3106831007 | D78: =SUM(D68:D77) -> 67.19594595 | E78: =SUM(E68:E77) -> 35.48121429
A80: Information provided by Datasource
A81: www.datasourcenev.com

Sheet BRANCH SALES TRACKING
A1: BUILDER/DEVELOPER | B1: (All)
A2: PROPTYPE | B2: (All)
D4: Values
A5: TITLE COMPANY | B5: BRANCH | C5: EO | D5: CLOSINGS | E5: DOLLAR VOL. | F5: % OF CLOSINGS | G5: % OF DOLLAR VOL.
A6: Acme Title and Escrow | D6: 225 | E6: 104275227.5 | F6: 0.01700551735 | G6: 0.009886106375
B7: LANDER | D7: 225 | E7: 104275227.5 | F7: 0.01700551735 | G7: 0.009886106375
C8: LTE | D8: 148 | E8: 75922700 | F8: 0.01118585141 | G8: 0.007198065221
C9: UNK | D9: 2 | E9: 925000 | F9: 0.0001511601542 | G9: 8.769722796e-05
C10: YC | D10: 75 | E10: 27427527.5 | F10: 0.005668505782 | G10: 0.002600343926
A12: DHI Title of Nevada | D12: 342 | E12: 159283940.2 | F12: 0.02584838637 | G12: 0.01510136218
B13: NEIL | D13: 278 | E13: 133466559.2 | F13: 0.02101126143 | G13: 0.01265367272
C14: N/A | D14: 278 | E14: 133466559.2 | F14: 0.02101126143 | G14: 0.01265367272
B16: NEIL RD | D16: 19 | E16: 7934365 | F16: 0.001436021465 | G16: 0.0007522398012
C17: N/A | D17: 19 | E17: 7934365 | F17: 0.001436021465 | G17: 0.0007522398012
B19: LONGLEY | D19: 45 | E19: 17883016 | F19: 0.003401103469 | G19: 0.001695449655
C20: N/A | D20: 45 | E20: 17883016 | F20: 0.003401103469 | G20: 0.001695449655
A22: First American Title | D22: 1488 | E22: 1963419552 | F22: 0.1124631547 | G22: 0.1861475158
B23: HENDERSON | D23: 3 | E23: 757000 | F23: 0.0002267402313 | G23: 7.176951521e-05
C24: UNK | D24: 3 | E24: 757000 | F24: 0.0002267402313 | G24: 7.176951521e-05
B26: INCLINE | D26: 171 | E26: 318338726.6 | F26: 0.01292419318 | G26: 0.03018099878
C27: VD | D27: 171 | E27: 318338726.6 | F27: 0.01292419318 | G27: 0.03018099878
B29: KIETZKE | D29: 756 | E29: 549508630.1 | F29: 0.05713853828 | G29: 0.052097712
C30: KS | D30: 147 | E30: 71568017.34 | F30: 0.01111027133 | G30: 0.006785207277
C31: MLR | D31: 161 | E31: 246354200.1 | F31: 0.01216839241 | G31: 0.02335630319
C32: UNK | D32: 4 | E32: 4517000 | F32: 0.0003023203084 | G32: 0.0004282468959
C33: TM | D33: 202 | E33: 95379280 | F33: 0.01526717557 | G33: 0.009042701039
C34: TK | D34: 164 | E34: 89678919.61 | F34: 0.01239513264 | G34: 0.008502262331
C35: MH | D35: 53 | E35: 24178300 | F35: 0.004005744086 | G35: 0.00229229177
C36: NMP | D36: 9 | E36: 3824000 | F36: 0.0006802206938 | G36: 0.0003625450808
C37: TI | D37: 1 | E37: 210000 | F37: 7.558007709e-05 | G37: 1.990964094e-05
C38: PB | D38: 11 | E38: 12312413 | F38: 0.000831380848 | G38: 0.001167312962
C39: CE | D39: 4 | E39: 1486500 | F39: 0.0003023203084 | G39: 0.0001409318155
B41: LAS VEGAS | D41: 55 | E41: 254015289.8 | F41: 0.00415690424 | G41: 0.02408263436
C42: NCS | D42: 22 | E42: 248515117.8 | F42: 0.001662761696 | G42: 0.02356117507
C43: RC | D43: 1 | E43: 800000 | F43: 7.558007709e-05 | G43: 7.584625121e-05
C44: UNK | D44: 5 | E44: 512400 | F44: 0.0003779003855 | G44: 4.85795239e-05
C45: MR | D45: 22 | E45: 2592700 | F45: 0.001662761696 | G45: 0.0002458082194
C46: LM | D46: 1 | E46: 482000 | F46: 7.558007709e-05 | G46: 4.569736635e-05
C47: DP | D47: 2 | E47: 473072 | F47: 0.0001511601542 | G47: 4.485092219e-05
C48: EDH | D48: 2 | E48: 640000 | F48: 0.0001511601542 | G48: 6.067700097e-05
B50: MCCARRAN | D50: 1 | E50: 250000 | F50: 7.558007709e-05 | G50: 2.37019535e-05
C51: MK | D51: 1 | E51: 250000 | F51: 7.558007709e-05 | G51: 2.37019535e-05
B53: RIDGEVIEW | D53: 1 | E53: 450000 | F53: 7.558007709e-05 | G53: 4.266351631e-05
C54: 20 | D54: 1 | E54: 450000 | F54: 7.558007709e-05 | G54: 4.266351631e-05
B56: SPARKS | D56: 471 | E56: 221555337.5 | F56: 0.03559821631 | G56: 0.02100517723
C57: 21 | D57: 4 | E57: 2793000 | F57: 0.0003023203084 | G57: 0.0002647982245
C58: CY | D58: 177 | E58: 79865734.5 | F58: 0.01337767365 | G58: 0.007571895703
C59: JP | D59: 290 | E59: 138896603 | F59: 0.02191822236 | G59: 0.0131684833
B61: MINDEN | D61: 8 | E61: 2857300 | F61: 0.0006046406167 | G61: 0.000270894367
C62: MK | D62: 5 | E62: 2124800 | F62: 0.0003779003855 | G62: 0.0002014476432
C63: ET | D63: 2 | E63: 502500 | F63: 0.0001511601542 | G63: 4.764092654e-05
C64: NMP | D64: 1 | E64: 230000 | F64: 7.558007709e-05 | G64: 2.180579722e-05
B66: SAN FRANCISCO, CA | D66: 2 | E66: 11634876 | F66: 0.0001511601542 | G66: 0.00110307716
C67: NCS | D67: 2 | E67: 11634876 | F67: 0.0001511601542 | G67: 0.00110307716
B69: IRVINE, CA | D69: 2 | E69: 39400000 | F69: 0.0001511601542 | G69: 0.003735427872
C70: NCS | D70: 2 | E70: 39400000 | F70: 0.0001511601542 | G70: 0.003735427872
B72: SP | D72: 1 | E72: 495000 | F72: 7.558007709e-05 | G72: 4.692986794e-05
C73: CY | D73: 1 | E73: 495000 | F73: 7.558007709e-05 | G73: 4.692986794e-05
B75: CHICAGO, IL | D75: 3 | E75: 363206581 | F75: 0.0002267402313 | G75: 0.03443482198
C76: NCS | D76: 3 | E76: 363206581 | F76: 0.0002267402313 | G76: 0.03443482198
B78: NEW YORK, NY | D78: 1 | E78: 11700000 | F78: 7.558007709e-05 | G78: 0.001109251424
C79: NCS | D79: 1 | E79: 11700000 | F79: 7.558007709e-05 | G79: 0.001109251424
B81: SEATTLE | D81: 2 | E81: 26400000 | F81: 0.0001511601542 | G81: 0.00250292629
C82: NCS | D82: 2 | E82: 26400000 | F82: 0.0001511601542 | G82: 0.00250292629
B84: SAN DIEGO, CA | D84: 1 | E84: 64250000 | F84: 7.558007709e-05 | G84: 0.00609140205
C85: NCS | D85: 1 | E85: 64250000 | F85: 7.558007709e-05 | G85: 0.00609140205
B87: SANTA ANA, CA | D87: 1 | E87: 1600000 | F87: 7.558007709e-05 | G87: 0.0001516925024
C88: NCS | D88: 1 | E88: 1600000 | F88: 7.558007709e-05 | G88: 0.0001516925024
B90: SAN JOSE | D90: 1 | E90: 6800000 | F90: 7.558007709e-05 | G90: 0.0006446931353
C91: NCS | D91: 1 | E91: 6800000 | F91: 7.558007709e-05 | G91: 0.0006446931353
B93: KANSAS, MO | D93: 1 | E93: 38957622 | F93: 7.558007709e-05 | G93: 0.003693486981
C94: NCS | D94: 1 | E94: 38957622 | F94: 7.558007709e-05 | G94: 0.003693486981
B96: SALT LAKE CITY, UT | D96: 2 | E96: 10165000 | F96: 0.0001511601542 | G96: 0.0009637214294
C97: NCS | D97: 2 | E97: 10165000 | F97: 0.0001511601542 | G97: 0.0009637214294
B99: CHICAGO | D99: 1 | E99: 14500000 | F99: 7.558007709e-05 | G99: 0.001374713303
C100: NCS | D100: 1 | E100: 14500000 | F100: 7.558007709e-05 | G100: 0.001374713303
B102: ONTARIO, CA | D102: 1 | E102: 8066100 | F102: 7.558007709e-05 | G102: 0.0007647293086
C103: NCS | D103: 1 | E103: 8066100 | F103: 7.558007709e-05 | G103: 0.0007647293086
B105: SEATTLE, WA | D105: 2 | E105: 17000000 | F105: 0.0001511601542 | G105: 0.001611732838
C106: NCS | D106: 2 | E106: 17000000 | F106: 0.0001511601542 | G106: 0.001611732838
B108: DENVER | D108: 1 | E108: 1512089.53 | F108: 7.558007709e-05 | G108: 0.0001433579029
C109: NCS | D109: 1 | E109: 1512089.53 | F109: 7.558007709e-05 | G109: 0.0001433579029
A111: First Centennial Title | D111: 4504 | E111: 3117962934 | F111: 0.3404126672 | G111: 0.2956072499
B112: Lyon | D112: 29 | E112: 33314471.58 | F112: 0.002191822236 | G112: 0.003158472226
C113: 23 | D113: 6 | E113: 5907500 | F113: 0.0004534804626 | G113: 0.0005600771613
C114: 18 | D114: 9 | E114: 6284471.58 | F114: 0.0006802206938 | G114: 0.0005958170127
C115: 17 | D115: 14 | E115: 21122500 | F115: 0.001058121079 | G115: 0.002002578051
B117: DAMONTE | D117: 368 | E117: 267884137.5 | F117: 0.02781346837 | G117: 0.02539750948
C118: 23 | D118: 1 | E118: 580000 | F118: 7.558007709e-05 | G118: 5.498853213e-05
C119: 24 | D119: 367 | E119: 267304137.5 | F119: 0.02773788829 | G119: 0.02534252095
B121: INCLINE | D121: 128 | E121: 262559369 | F121: 0.009674249868 | G121: 0.02489267982
C122: 25 | D122: 128 | E122: 262559369 | F122: 0.009674249868 | G122: 0.02489267982
B124: KIETZKE | D124: 3 | E124: 945000 | F124: 0.0002267402313 | G124: 8.959338424e-05
C125: 20 | D125: 1 | E125: 410000 | F125: 7.558007709e-05 | G125: 3.887120375e-05
C126: CD | D126: 2 | E126: 535000 | F126: 0.0001511601542 | G126: 5.07221805e-05
B128: LAKESIDE | D128: 391 | E128: 216962632.8 | F128: 0.02955181014 | G128: 0.02056975294
C129: 15 | D129: 1 | E129: 600000 | F129: 7.558007709e-05 | G129: 5.688468841e-05
C130: 5 | D130: 386 | E130: 214344732.8 | F130: 0.02917390976 | G130: 0.02032155556
C131: SL | D131: 2 | E131: 942900 | F131: 0.0001511601542 | G131: 8.939428783e-05
C132: SH | D132: 2 | E132: 1075000 | F132: 0.0001511601542 | G132: 0.0001019184001
B134: LAKESIDEMOANA | D134: 636 | E134: 304360090 | F134: 0.04806892903 | G134: 0.02885571481
C135: 12 | D135: 636 | E135: 304360090 | F135: 0.04806892903 | G135: 0.02885571481
B137: RIDGEVIEW | D137: 2488 | E137: 1777630026 | F137: 0.1880432318 | G137: 0.1685332169
C138: 10 | D138: 472 | E138: 383780572.1 | F138: 0.03567379639 | G138: 0.0363853971
C139: 11 | D139: 387 | E139: 214899275 | F139: 0.02924948983 | G139: 0.0203741305
C140: 12 | D140: 1 | E140: 1390000 | F140: 7.558007709e-05 | G140: 0.0001317828615
C141: 15 | D141: 354 | E141: 204911442.5 | F141: 0.02675534729 | G141: 0.01942720593
C142: 20 | D142: 391 | E142: 413051216.2 | F142: 0.02955181014 | G142: 0.03916048288
C143: 5 | D143: 1 | E143: 415000 | F143: 7.558007709e-05 | G143: 3.934524282e-05
C144: 9 | D144: 808 | E144: 519566198.7 | F144: 0.06106870229 | G144: 0.04925893553
C145: UNK | D145: 3 | E145: 3925000 | F145: 0.0002267402313 | G145: 0.00037212067
C146: BC | D146: 1 | E146: 155000 | F146: 7.558007709e-05 | G146: 1.469521117e-05
C147: GG | D147: 1 | E147: 725000 | F147: 7.558007709e-05 | G147: 6.873566516e-05
C148: 26 | D148: 59 | E148: 30910766 | F148: 0.004459224548 | G148: 0.002930582154
C149: 7 | D149: 1 | E149: 63500 | F149: 7.558007709e-05 | G149: 6.02029619e-06
C150: BZ | D150: 9 | E150: 3837056 | F150: 0.0006802206938 | G150: 0.0003637828916
B152: SPARKS | D152: 456 | E152: 243921217.4 | F152: 0.03446451515 | G152: 0.02312563742
C153: 15 | D153: 3 | E153: 1514000 | F153: 0.0002267402313 | G153: 0.0001435390304
C154: 21 | D154: 453 | E154: 242407217.4 | F154: 0.03423777492 | G154: 0.02298209838
B156: RI | D156: 1 | E156: 355989 | F156: 7.558007709e-05 | G156: 3.37505389e-05
C157: 20 | D157: 1 | E157: 355989 | F157: 7.558007709e-05 | G157: 3.37505389e-05
D159: 1 | E159: 8300000 | F159: 7.558007709e-05 | G159: 0.0007869048563
C160: 9 | D160: 1 | E160: 8300000 | F160: 7.558007709e-05 | G160: 0.0007869048563
B162: UNKNOWN | D162: 1 | E162: 630000 | F162: 7.558007709e-05 | G162: 5.972892283e-05
C163: UNK | D163: 1 | E163: 630000 | F163: 7.558007709e-05 | G163: 5.972892283e-05
B165: LAKESDIE | D165: 1 | E165: 655000 | F165: 7.558007709e-05 | G165: 6.209911818e-05
C166: 5 | D166: 1 | E166: 655000 | F166: 7.558007709e-05 | G166: 6.209911818e-05
B168: DAM | D168: 1 | E168: 445000 | F168: 7.558007709e-05 | G168: 4.218947724e-05
C169: 24 | D169: 1 | E169: 445000 | F169: 7.558007709e-05 | G169: 4.218947724e-05
A171: Ticor Title | D171: 2158 | E171: 2567235303 | F171: 0.1631018064 | G171: 0.2433939671
B172: Lyon | D172: 63 | E172: 38408467 | F172: 0.004761544857 | G172: 0.003641422796
C173: 23 | D173: 1 | E173: 1000000 | F173: 7.558007709e-05 | G173: 9.480781401e-05
C174: DKD | D174: 50 | E174: 26270967 | F174: 0.003779003855 | G174: 0.002490692953
C175: UNK | D175: 1 | E175: 182500 | F175: 7.558007709e-05 | G175: 1.730242606e-05
C176: DC | D176: 11 | E176: 10955000 | F176: 0.000831380848 | G176: 0.001038619603
B178: FERNLEY | D178: 18 | E178: 6275367 | F178: 0.001360441388 | G178: 0.0005949538274
C179: DNO | D179: 18 | E179: 6275367 | F179: 0.001360441388 | G179: 0.0005949538274
B181: GARDNERVILLE | D181: 8 | E181: 3990000 | F181: 0.0006046406167 | G181: 0.0003782831779
C182: RLT | D182: 8 | E182: 3990000 | F182: 0.0006046406167 | G182: 0.0003782831779
B184: INCLINE | D184: 189 | E184: 464517976.5 | F184: 0.01428463457 | G184: 0.04403993392
C185: SLP | D185: 189 | E185: 464517976.5 | F185: 0.01428463457 | G185: 0.04403993392
B187: KIETZKE | D187: 891 | E187: 1480613611 | F187: 0.06734184869 | G187: 0.1403737398
C188: AE | D188: 273 | E188: 148543874 | F188: 0.02063336105 | G188: 0.01408311998
C189: CD | D189: 168 | E189: 566306794.9 | F189: 0.01269745295 | G189: 0.05369030929
C190: JN | D190: 4 | E190: 2011000 | F190: 0.0003023203084 | G190: 0.000190658514
C191: KA | D191: 41 | E191: 22581400 | F191: 0.003098783161 | G191: 0.002140893171
C192: LTF | D192: 1 | E192: 440000 | F192: 7.558007709e-05 | G192: 4.171543817e-05
C193: RLS | D193: 239 | E193: 125270506 | F193: 0.01806363842 | G193: 0.01187662283
C194: TO | D194: 37 | E194: 548958913 | F194: 0.002796462852 | G194: 0.05204559452
C195: ACM | D195: 125 | E195: 65217122.78 | F195: 0.009447509636 | G195: 0.006183092847
C196: AJF | D196: 1 | E196: 39000 | F196: 7.558007709e-05 | G196: 3.697504747e-06
C197: KAB | D197: 2 | E197: 1245000 | F197: 0.0001511601542 | G197: 0.0001180357284
B199: LAKESIDE | D199: 658 | E199: 403286181.6 | F199: 0.04973169073 | G199: 0.0382346813
C200: 5 | D200: 16 | E200: 7534400 | F200: 0.001209281233 | G200: 0.0007143199939
C201: SL | D201: 642 | E201: 395751781.6 | F201: 0.04852240949 | G201: 0.03752036131
B203: LAKESIDEMOANA | D203: 1 | E203: 950000 | F203: 7.558007709e-05 | G203: 9.006742331e-05
C204: 12 | D204: 1 | E204: 950000 | F204: 7.558007709e-05 | G204: 9.006742331e-05
B206: PLUMB | D206: 325 | E206: 165475700 | F206: 0.02456352505 | G206: 0.01568838939
C207: NF | D207: 147 | E207: 78910272 | F207: 0.01111027133 | G207: 0.007481310392
C208: AJF | D208: 176 | E208: 85545428 | F208: 0.01330209357 | G208: 0.008110375028
C209: LSC | D209: 2 | E209: 1020000 | F209: 0.0001511601542 | G209: 9.670397029e-05
B211: LAKESDIE | D211: 2 | E211: 935000 | F211: 0.0001511601542 | G211: 8.86453061e-05
C212: SL | D212: 2 | E212: 935000 | F212: 0.0001511601542 | G212: 8.86453061e-05
B214: CLEVELAND, OH | D214: 1 | E214: 570000 | F214: 7.558007709e-05 | G214: 5.404045399e-05
C215: DC | D215: 1 | E215: 570000 | F215: 7.558007709e-05 | G215: 5.404045399e-05
B217: LAKEISDE | D217: 1 | E217: 1250000 | F217: 7.558007709e-05 | G217: 0.0001185097675
C218: SL | D218: 1 | E218: 1250000 | F218: 7.558007709e-05 | G218: 0.0001185097675
B220: PL | D220: 1 | E220: 963000 | F220: 7.558007709e-05 | G220: 9.129992489e-05
C221: AJF | D221: 1 | E221: 963000 | F221: 7.558007709e-05 | G221: 9.129992489e-05
A223: Toiyabe Title | D223: 173 | E223: 75860799 | F223: 0.01307535334 | G223: 0.007192196522
B224: KIETZKE | D224: 1 | E224: 285000 | F224: 7.558007709e-05 | G224: 2.702022699e-05
C225: AE | D225: 1 | E225: 285000 | F225: 7.558007709e-05 | G225: 2.702022699e-05
B227: MCCARRAN | D227: 170 | E227: 74460799 | F227: 0.01284861311 | G227: 0.007059465583
C228: JH | D228: 161 | E228: 71327799 | F228: 0.01216839241 | G228: 0.006762432702
C229: UNK | D229: 8 | E229: 2958000 | F229: 0.0006046406167 | G229: 0.0002804415139
C230: CE | D230: 1 | E230: 175000 | F230: 7.558007709e-05 | G230: 1.659136745e-05
B232: MINDEN | D232: 2 | E232: 1115000 | F232: 0.0001511601542 | G232: 0.0001057107126
C233: NF | D233: 2 | E233: 1115000 | F233: 0.0001511601542 | G233: 0.0001057107126
A235: Westminster Title - Las Vegas | D235: 546 | E235: 429831144 | F235: 0.04126672209 | G235: 0.04075135116
B236: LAS VEGAS | D236: 546 | E236: 429831144 | F236: 0.04126672209 | G236: 0.04075135116
C237: TB | D237: 546 | E237: 429831144 | F237: 0.04126672209 | G237: 0.04075135116
A239: Driggs Title Agency | D239: 1 | E239: 375000 | F239: 7.558007709e-05 | G239: 3.555293025e-05
B240: LAS VEGAS | D240: 1 | E240: 375000 | F240: 7.558007709e-05 | G240: 3.555293025e-05
C241: SE | D241: 1 | E241: 375000 | F241: 7.558007709e-05 | G241: 3.555293025e-05
A243: Stewart Title | D243: 2944 | E243: 1632211790 | F243: 0.222507747 | G243: 0.1547464318
B244: Lyon | D244: 62 | E244: 38407624.32 | F244: 0.00468596478 | G244: 0.003641342903
C245: AMG | D245: 14 | E245: 9847039.32 | F245: 0.001058121079 | G245: 0.0009335762724
C246: UNK | D246: 3 | E246: 1990000 | F246: 0.0002267402313 | G246: 0.0001886675499
C247: KDJ | D247: 44 | E247: 24070585 | F247: 0.003325523392 | G247: 0.002282079546
C248: BB | D248: 1 | E248: 2500000 | F248: 7.558007709e-05 | G248: 0.000237019535
B250: FERNLEY | D250: 5 | E250: 3329000 | F250: 0.0003779003855 | G250: 0.0003156152129
C251: MLC | D251: 5 | E251: 3329000 | F251: 0.0003779003855 | G251: 0.0003156152129
B253: GARDNERVILLE | D253: 7 | E253: 3328000 | F253: 0.0005290605396 | G253: 0.000315520405
C254: SLA | D254: 3 | E254: 1260000 | F254: 0.0002267402313 | G254: 0.0001194578457
C255: WLD | D255: 4 | E255: 2068000 | F255: 0.0003023203084 | G255: 0.0001960625594
B257: KIETZKE | D257: 1437 | E257: 823047083.4 | F257: 0.1086085708 | G257: 0.07803129481
C258: ASK | D258: 2 | E258: 1000000 | F258: 0.0001511601542 | G258: 9.480781401e-05
C259: CKL | D259: 1 | E259: 405000 | F259: 7.558007709e-05 | G259: 3.839716468e-05
C260: CRF | D260: 5 | E260: 1944000 | F260: 0.0003779003855 | G260: 0.0001843063904
C261: DJA | D261: 3 | E261: 1677700 | F261: 0.0002267402313 | G261: 0.0001590590696
... 72 more rows

Sheet LENDER TRACKING
A1: TYPELOAN | B1: (All)
C3: Values
A4: LENDER | B4: TITLE COMPANY | C4: CLOSINGS | D4: DOLLAR VOL. | E4: % OF CLOSINGS | F4: % OF DOLLAR VOL.
A5: ACADEMY MORTGAGE CORPORATION | C5: 30 | D5: 9670380 | E5: 0.002677615137 | F5: 0.001755428843
B6: First American Title | C6: 1 | D6: 371880 | E6: 8.925383792e-05 | F6: 6.750602128e-05
B7: Ticor Title | C7: 14 | D7: 4398200 | E7: 0.001249553731 | F7: 0.0007983892191
B8: Stewart Title | C8: 15 | D8: 4900300 | E8: 0.001338807569 | F8: 0.0008895336025
A10: ALL WESTERN MORTGAGE INC | C10: 365 | D10: 125042723 | E10: 0.03257765084 | F10: 0.02269854986
B11: Acme Title and Escrow | C11: 4 | D11: 1235000 | E11: 0.0003570153517 | F11: 0.0002241850497
B12: First American Title | C12: 185 | D12: 63644528 | E12: 0.01651196001 | F12: 0.01155315925
B13: First Centennial Title | C13: 33 | D13: 12728033 | E13: 0.002945376651 | F13: 0.00231047345
B14: Ticor Title | C14: 6 | D14: 2192140 | E14: 0.0005355230275 | F14: 0.0003979311861
B15: Stewart Title | C15: 134 | D15: 44283199 | E15: 0.01196001428 | F15: 0.008038567748
B16: Signature Title Company | C16: 3 | D16: 959823 | E16: 0.0002677615137 | F16: 0.0001742331716
A18: AMERICAN FINANCIAL NETWORK INC | C18: 12 | D18: 3868824 | E18: 0.001071046055 | F18: 0.0007022935229
B19: Acme Title and Escrow | C19: 1 | D19: 249000 | E19: 8.925383792e-05 | F19: 4.520006265e-05
B20: First Centennial Title | C20: 2 | D20: 424400 | E20: 0.0001785076758 | F20: 7.70397855e-05
B21: Ticor Title | C21: 1 | D21: 264000 | E21: 8.925383792e-05 | F21: 4.792295799e-05
B22: Stewart Title | C22: 8 | D22: 2931424 | E22: 0.0007140307033 | F22: 0.0005321307167
A24: AMERICAN PACIFIC MORTGAGE CORPORATION | C24: 79 | D24: 31236251 | E24: 0.007051053195 | F24: 0.00567020282
B25: Acme Title and Escrow | C25: 1 | D25: 276000 | E25: 8.925383792e-05 | F25: 5.010127427e-05
B26: First American Title | C26: 34 | D26: 10093979 | E26: 0.003034630489 | F26: 0.001832323226
B27: First Centennial Title | C27: 7 | D27: 2549464 | E27: 0.0006247768654 | F27: 0.0004627949098
B28: Ticor Title | C28: 29 | D28: 15778858 | E28: 0.0025883613 | F28: 0.002864278595
B29: Toiyabe Title | C29: 1 | D29: 308700 | E29: 8.925383792e-05 | F29: 5.603718611e-05
B30: Stewart Title | C30: 4 | D30: 972000 | E30: 0.0003570153517 | F30: 0.0001764436181
B31: Archer Title and Escrow | C31: 3 | D31: 1257250 | E31: 0.0002677615137 | F31: 0.0002282240111
A33: AMERIFIRST FINANCIAL INC | C33: 2 | D33: 710000 | E33: 0.0001785076758 | F33: 0.0001288837128
B34: First Centennial Title | C34: 2 | D34: 710000 | E34: 0.0001785076758 | F34: 0.0001288837128
A36: AXIA FINANCIAL LLC | C36: 141 | D36: 43737227 | E36: 0.01258479115 | F36: 0.00793945944
B37: Acme Title and Escrow | C37: 2 | D37: 421500 | E37: 0.0001785076758 | F37: 7.651335907e-05
B38: First American Title | C38: 9 | D38: 2239250 | E38: 0.0008032845412 | F38: 0.0004064828928
B39: First Centennial Title | C39: 12 | D39: 3911253 | E39: 0.001071046055 | F39: 0.0007099955046
B40: Ticor Title | C40: 70 | D40: 20824224 | E40: 0.006247768654 | F40: 0.0037801455
B41: Stewart Title | C41: 44 | D41: 15066900 | E41: 0.003927168868 | F41: 0.002735039454
B42: Archer Title and Escrow | C42: 4 | D42: 1274100 | E42: 0.0003570153517 | F42: 0.0002312827302
A44: BANK OF AMERICA NA | C44: 28 | D44: 46327616 | E44: 0.002499107462 | F44: 0.008409683316
B45: Acme Title and Escrow | C45: 1 | D45: 1650000 | E45: 8.925383792e-05 | F45: 0.0002995184875
B46: First American Title | C46: 6 | D46: 11623878 | E46: 0.0005355230275 | F46: 0.002110040216
B47: First Centennial Title | C47: 9 | D47: 7538699 | E47: 0.0008032845412 | F47: 0.001368472559
B48: Ticor Title | C48: 8 | D48: 23876688 | E48: 0.0007140307033 | F48: 0.004334248167
B49: Stewart Title | C49: 4 | D49: 1638351 | E49: 0.0003570153517 | F49: 0.0002974038869
A51: BANK OF THE WEST | C51: 13 | D51: 10359300 | E51: 0.001160299893 | F51: 0.00188048598
B52: First American Title | C52: 8 | D52: 2536300 | E52: 0.0007140307033 | F52: 0.0004604052968
B53: First Centennial Title | C53: 3 | D53: 3608000 | E53: 0.0002677615137 | F53: 0.0006549470926
B54: Ticor Title | C54: 2 | D54: 4215000 | E54: 0.0001785076758 | F54: 0.0007651335907
A56: BAY EQUITY LLC | C56: 172 | D56: 62052639 | E56: 0.01535166012 | F56: 0.01126418944
B57: Acme Title and Escrow | C57: 49 | D57: 18383200 | E57: 0.004373438058 | F57: 0.003337035308
B58: First American Title | C58: 6 | D58: 1469300 | E58: 0.0005355230275 | F58: 0.0002667166749
B59: First Centennial Title | C59: 7 | D59: 2985853 | E59: 0.0006247768654 | F59: 0.0005420110148
B60: Ticor Title | C60: 74 | D60: 27467129 | E60: 0.006604784006 | F60: 0.004986007838
B61: Toiyabe Title | C61: 3 | D61: 807500 | E61: 0.0002677615137 | F61: 0.0001465825325
B62: Stewart Title | C62: 31 | D62: 10406907 | E62: 0.002766868975 | F62: 0.001889127905
B63: Signature Title Company | C63: 2 | D63: 532750 | E63: 0.0001785076758 | F63: 9.670816618e-05
A65: BOKF NA | C65: 3 | D65: 31833000 | E65: 0.0002677615137 | F65: 0.005778528492
B66: First American Title | C66: 2 | D66: 31387000 | E66: 0.0001785076758 | F66: 0.005697567737
B67: First Centennial Title | C67: 1 | D67: 446000 | E67: 8.925383792e-05 | F67: 8.096075479e-05
A69: CALIBER HOME LOANS INC | C69: 336 | D69: 114323143 | E69: 0.02998928954 | F69: 0.02075266356
B70: Acme Title and Escrow | C70: 1 | D70: 400000 | E70: 8.925383792e-05 | F70: 7.261054241e-05
B71: First American Title | C71: 124 | D71: 41413472 | E71: 0.0110674759 | F71: 0.007517636663
B72: First Centennial Title | C72: 34 | D72: 14736498 | E72: 0.003034630489 | F72: 0.002675062783
B73: Ticor Title | C73: 34 | D73: 10907260 | E73: 0.003034630489 | F73: 0.001979955162
B74: Toiyabe Title | C74: 2 | D74: 495000 | E74: 0.0001785076758 | F74: 8.985554624e-05
B75: Stewart Title | C75: 141 | D75: 46370913 | E75: 0.01258479115 | F75: 0.008417542863
A77: CARDINAL FINANCIAL COMPANY LIMITED PARTNERSHIP | C77: 158 | D77: 63244307 | E77: 0.01410210639 | F77: 0.01148050859
B78: Acme Title and Escrow | C78: 4 | D78: 933000 | E78: 0.0003570153517 | F78: 0.0001693640902
B79: First American Title | C79: 15 | D79: 4625060 | E79: 0.001338807569 | F79: 0.0008395702883
B80: First Centennial Title | C80: 45 | D80: 22788263 | E80: 0.004016422706 | F80: 0.004136670343
B81: Ticor Title | C81: 50 | D81: 22377597 | E81: 0.004462691896 | F81: 0.00406212364
B82: Stewart Title | C82: 9 | D82: 4242844 | E82: 0.0008032845412 | F82: 0.0007701880106
B83: Archer Title and Escrow | C83: 1 | D83: 235150 | E83: 8.925383792e-05 | F83: 4.268592262e-05
B84: Signature Title Company | C84: 1 | D84: 376000 | E84: 8.925383792e-05 | F84: 6.825390987e-05
B85: True Title and Escrow | C85: 33 | D85: 7666393 | E85: 0.002945376651 | F85: 0.001391652385
A87: CITADEL SERVICING CORPORATION | C87: 6 | D87: 3631000 | E87: 0.0005355230275 | F87: 0.0006591221988
B88: Acme Title and Escrow | C88: 1 | D88: 125000 | E88: 8.925383792e-05 | F88: 2.26907945e-05
B89: First Centennial Title | C89: 4 | D89: 2011000 | E89: 0.0003570153517 | F89: 0.000365049502
B90: Stewart Title | C90: 1 | D90: 1495000 | E90: 8.925383792e-05 | F90: 0.0002713819023
A92: CITY NATIONAL BANK | C92: 23 | D92: 22142850 | E92: 0.002052838272 | F92: 0.004019510873
B93: First American Title | C93: 3 | D93: 10795000 | E93: 0.0002677615137 | F93: 0.001959577013
B94: First Centennial Title | C94: 14 | D94: 8929400 | E94: 0.001249553731 | F94: 0.001620921444
B95: Stewart Title | C95: 6 | D95: 2418450 | E95: 0.0005355230275 | F95: 0.0004390124158
A97: EVERGREEN MONEYSOURCE MORTGAGE COMPANY | C97: 169 | D97: 51934421 | E97: 0.01508389861 | F97: 0.009427466197
B98: Acme Title and Escrow | C98: 2 | D98: 809750 | E98: 0.0001785076758 | F98: 0.0001469909668
B99: First American Title | C99: 2 | D99: 405000 | E99: 0.0001785076758 | F99: 7.35181742e-05
B100: First Centennial Title | C100: 33 | D100: 9498771 | E100: 0.002945376651 | F100: 0.001724277286
B101: Ticor Title | C101: 38 | D101: 10907700 | E101: 0.003391645841 | F101: 0.001980035034
B102: Stewart Title | C102: 94 | D102: 30313200 | E102: 0.008389860764 | F102: 0.005502644736
A104: FAIRWAY INDEPENDENT MORTGAGE CORPORATION | C104: 57 | D104: 21614484 | E104: 0.005087468761 | F104: 0.003923598518
B105: Acme Title and Escrow | C105: 1 | D105: 261000 | E105: 8.925383792e-05 | F105: 4.737837893e-05
B106: First American Title | C106: 1 | D106: 324500 | E106: 8.925383792e-05 | F106: 5.890530253e-05
B107: First Centennial Title | C107: 9 | D107: 2593500 | E107: 0.0008032845412 | F107: 0.0004707886044
B108: Ticor Title | C108: 20 | D108: 7030851 | E108: 0.001785076758 | F108: 0.001276284762
B109: Stewart Title | C109: 25 | D109: 10779633 | E109: 0.002231345948 | F109: 0.001956787498
B110: Signature Title Company | C110: 1 | D110: 625000 | E110: 8.925383792e-05 | F110: 0.0001134539725
A112: FINANCE OF AMERICA MORTGAGE LLC | C112: 162 | D112: 50380963 | E112: 0.01445912174 | F112: 0.009145472627
B113: Acme Title and Escrow | C113: 12 | D113: 4042750 | E113: 0.001071046055 | F113: 0.0007338656759
B114: First American Title | C114: 23 | D114: 7634375 | E114: 0.002052838272 | F114: 0.001385840274
B115: First Centennial Title | C115: 30 | D115: 8155997 | E115: 0.002677615137 | F115: 0.001480528415
B116: Ticor Title | C116: 11 | D116: 4586850 | E116: 0.0009817922171 | F116: 0.0008326341662
B117: Toiyabe Title | C117: 12 | D117: 3874900 | E117: 0.001071046055 | F117: 0.000703396477
B118: Stewart Title | C118: 66 | D118: 20481691 | E118: 0.005890753302 | F118: 0.003717966733
B119: True Title and Escrow | C119: 8 | D119: 1604400 | E119: 0.0007140307033 | F119: 0.0002912408856
A121: FLAGSTAR BANK FSB | C121: 17 | D121: 6418258 | E121: 0.001517315245 | F121: 0.001165082987
B122: First American Title | C122: 4 | D122: 1115900 | E122: 0.0003570153517 | F122: 0.0002025652607
B123: First Centennial Title | C123: 4 | D123: 1697500 | E123: 0.0003570153517 | F123: 0.0003081409894
B124: Ticor Title | C124: 2 | D124: 553500 | E124: 0.0001785076758 | F124: 0.0001004748381
B125: Stewart Title | C125: 6 | D125: 2579058 | E125: 0.0005355230275 | F125: 0.0004681670007
B126: Signature Title Company | C126: 1 | D126: 472300 | E126: 8.925383792e-05 | F126: 8.573489796e-05
A128: GREAT BASIN FEDERAL CREDIT UNION | C128: 109 | D128: 15158610 | E128: 0.009728668333 | F128: 0.002751687236
B129: First American Title | C129: 9 | D129: 1994103 | E129: 0.0008032845412 | F129: 0.0003619822512
B130: First Centennial Title | C130: 18 | D130: 4525147 | E130: 0.001606569082 | F130: 0.0008214334454
B131: Stewart Title | C131: 82 | D131: 8639360 | E131: 0.007318814709 | F131: 0.001568271539
A133: GREATER NEVADA CREDIT UNION | C133: 63 | D133: 5661530 | E133: 0.005622991789 | F133: 0.00102771691
B134: First American Title | C134: 21 | D134: 1581500 | E134: 0.001874330596 | F134: 0.0002870839321
B135: First Centennial Title | C135: 21 | D135: 2132880 | E135: 0.001874330596 | F135: 0.0003871739343
B136: Ticor Title | C136: 13 | D136: 1602150 | E136: 0.001160299893 | F136: 0.0002908324513
B137: Stewart Title | C137: 8 | D137: 345000 | E137: 0.0007140307033 | F137: 6.262659283e-05
A139: GREATER NEVADA MORTGAGE | C139: 312 | D139: 80115826 | E139: 0.02784719743 | F139: 0.01454313395
B140: Acme Title and Escrow | C140: 5 | D140: 1386000 | E140: 0.0004462691896 | F140: 0.0002515955295
B141: First American Title | C141: 53 | D141: 11998608 | E141: 0.004730453409 | F141: 0.002178063588
B142: First Centennial Title | C142: 62 | D142: 17959894 | E142: 0.005533737951 | F142: 0.003260194113
B143: Ticor Title | C143: 100 | D143: 27393208 | E143: 0.008925383792 | F143: 0.004972589228
B144: Stewart Title | C144: 88 | D144: 20638116 | E144: 0.007854337737 | F144: 0.003746361993
B145: True Title and Escrow | C145: 4 | D145: 740000 | E145: 0.0003570153517 | F145: 0.0001343295035
A147: GUARANTEED RATE INC | C147: 24 | D147: 9472055 | E147: 0.00214209211 | F147: 0.001719427628
B148: First American Title | C148: 9 | D148: 2509335 | E148: 0.0008032845412 | F148: 0.0004555104386
B149: First Centennial Title | C149: 2 | D149: 571500 | E149: 0.0001785076758 | F149: 0.0001037423125
B150: Ticor Title | C150: 9 | D150: 4842720 | E150: 0.0008032845412 | F150: 0.0008790813149
B151: Stewart Title | C151: 2 | D151: 940000 | E151: 0.0001785076758 | F151: 0.0001706347747
B152: True Title and Escrow | C152: 2 | D152: 608500 | E152: 0.0001785076758 | F152: 0.0001104587876
A154: GUILD MORTGAGE COMPANY | C154: 14 | D154: 3427829 | E154: 0.001249553731 | F154: 0.0006222413075
B155: First American Title | C155: 4 | D155: 782050 | E155: 0.0003570153517 | F155: 0.0001419626867
B156: First Centennial Title | C156: 3 | D156: 782369 | E156: 0.0002677615137 | F156: 0.0001420205936
B157: Ticor Title | C157: 1 | D157: 341515 | E157: 8.925383792e-05 | F157: 6.199397348e-05
B158: Stewart Title | C158: 5 | D158: 1289895 | E158: 0.0004462691896 | F158: 0.000234149939
B159: True Title and Escrow | C159: 1 | D159: 232000 | E159: 8.925383792e-05 | F159: 4.21141146e-05
A161: HERITAGE BANK OF NEVADA | C161: 128 | D161: 107615025.9 | E161: 0.01142449125 | F161: 0.0195349635
B162: First American Title | C162: 25 | D162: 43025586.88 | E162: 0.002231345948 | F162: 0.007810278003
B163: First Centennial Title | C163: 66 | D163: 37515235 | E163: 0.005890753302 | F163: 0.006810003905
B164: Ticor Title | C164: 7 | D164: 10589000 | E164: 0.0006247768654 | F164: 0.001922182584
B165: Stewart Title | C165: 30 | D165: 16485204 | E165: 0.002677615137 | F165: 0.002992499011
A167: HOMEBRIDGE FINANCIAL SERVICES INC | C167: 4 | D167: 1263143 | E167: 0.0003570153517 | F167: 0.0002292937459
B168: First American Title | C168: 1 | D168: 216000 | E168: 8.925383792e-05 | F168: 3.92096929e-05
B169: First Centennial Title | C169: 3 | D169: 1047143 | E169: 0.0002677615137 | F169: 0.000190084053
A171: HOMEOWNERS FINANCIAL GROUP USA LLC | C171: 31 | D171: 7481098 | E171: 0.002766868975 | F171: 0.001358016459
B172: Stewart Title | C172: 31 | D172: 7481098 | E172: 0.002766868975 | F172: 0.001358016459
A174: ISERVE RESIDENTIAL LENDING LLC | C174: 131 | D174: 38502949 | E174: 0.01169225277 | F174: 0.006989300029
B175: Acme Title and Escrow | C175: 3 | D175: 764697 | E175: 0.0002677615137 | F175: 0.0001388126599
B176: First Centennial Title | C176: 65 | D176: 19054883 | E176: 0.005801499464 | F176: 0.003458963476
B177: Stewart Title | C177: 63 | D177: 18683369 | E177: 0.005622991789 | F177: 0.003391523893
A179: JPMORGAN CHASE BANK NA | C179: 15 | D179: 27990067.71 | E179: 0.001338807569 | F179: 0.005080934997
B180: First American Title | C180: 2 | D180: 16852500 | E180: 0.0001785076758 | F180: 0.003059172915
B181: First Centennial Title | C181: 6 | D181: 5351568.71 | E181: 0.0005355230275 | F181: 0.000971450767
B182: Ticor Title | C182: 4 | D182: 4050199 | E182: 0.0003570153517 | F182: 0.0007352178657
B183: Stewart Title | C183: 3 | D183: 1735800 | E183: 0.0002677615137 | F183: 0.0003150934488
A185: LAND HOME FINANCIAL SERVICES INC | C185: 4 | D185: 1557100 | E185: 0.0003570153517 | F185: 0.000282654689
B186: First American Title | C186: 1 | D186: 322850 | E186: 8.925383792e-05 | F186: 5.860578405e-05
B187: First Centennial Title | C187: 2 | D187: 874250 | E187: 0.0001785076758 | F187: 0.0001586994168
B188: Ticor Title | C188: 1 | D188: 360000 | E188: 8.925383792e-05 | F188: 6.534948817e-05
A190: LOANDEPOT.COM LLC | C190: 80 | D190: 32057365 | E190: 0.007140307033 | F190: 0.005819256653
B191: Acme Title and Escrow | C191: 4 | D191: 1849732 | E191: 0.0003570153517 | F191: 0.0003357751096
B192: First American Title | C192: 12 | D192: 4966450 | E192: 0.001071046055 | F192: 0.0009015415709
B193: First Centennial Title | C193: 29 | D193: 10845195 | E193: 0.0025883613 | F193: 0.001968688729
B194: Ticor Title | C194: 8 | D194: 4620000 | E194: 0.0007140307033 | F194: 0.0008386517649
B195: Stewart Title | C195: 26 | D195: 9492488 | E195: 0.002320599786 | F195: 0.001723136756
B196: Signature Title Company | C196: 1 | D196: 283500 | E196: 8.925383792e-05 | F196: 5.146272194e-05
A198: MANN MORTGAGE LLC | C198: 67 | D198: 20788158 | E198: 0.00598000714 | F198: 0.00377359857
B199: Acme Title and Escrow | C199: 1 | D199: 176000 | E199: 8.925383792e-05 | F199: 3.194863866e-05
B200: First American Title | C200: 1 | D200: 228500 | E200: 8.925383792e-05 | F200: 4.147877235e-05
B201: First Centennial Title | C201: 20 | D201: 6024243 | E201: 0.001785076758 | F201: 0.00109355888
B202: Ticor Title | C202: 2 | D202: 538026 | E202: 0.0001785076758 | F202: 9.766589923e-05
B203: Stewart Title | C203: 36 | D203: 11496239 | E203: 0.003213138165 | F203: 0.002086870374
B204: Archer Title and Escrow | C204: 3 | D204: 1193000 | E204: 0.0002677615137 | F204: 0.0002165609428
B205: Signature Title Company | C205: 4 | D205: 1132150 | E205: 0.0003570153517 | F205: 0.000205515064
A207: MASON MCDUFFIE MORTGAGE CORPORATION | C207: 113 | D207: 35367560 | E207: 0.01008568368 | F207: 0.006420144289
B208: First American Title | C208: 20 | D208: 5420900 | E208: 0.001785076758 | F208: 0.0009840362234
B209: First Centennial Title | C209: 36 | D209: 11905597 | E209: 0.003213138165 | F209: 0.00216117964
B210: Ticor Title | C210: 3 | D210: 1075250 | E210: 0.0002677615137 | F210: 0.0001951862143
B211: Stewart Title | C211: 54 | D211: 16965813 | E211: 0.004819707247 | F211: 0.003079742211
A213: MEADOWS BANK | C213: 16 | D213: 22374135 | E213: 0.001428061407 | F213: 0.004061495196
B214: First Centennial Title | C214: 7 | D214: 7820000 | E214: 0.0006247768654 | F214: 0.001419536104
B215: Ticor Title | C215: 5 | D215: 2896135 | E215: 0.0004462691896 | F215: 0.0005257248331
B216: Stewart Title | C216: 4 | D216: 11658000 | E216: 0.0003570153517 | F216: 0.002116234259
A218: MORGAN STANLEY PRIVATE BANK NATIONAL ASSOCIATION | C218: 14 | D218: 16745401 | E218: 0.001249553731 | F218: 0.003039731624
B219: First American Title | C219: 3 | D219: 3145401 | E219: 0.0002677615137 | F219: 0.0005709731818
B220: First Centennial Title | C220: 7 | D220: 7625000 | E220: 0.0006247768654 | F220: 0.001384138465
B221: Ticor Title | C221: 4 | D221: 5975000 | E221: 0.0003570153517 | F221: 0.001084619977
A223: MOUNTAIN AMERICA FEDERAL CREDIT UNION | C223: 79 | D223: 30076150 | E223: 0.007051053195 | F223: 0.005459613913
B224: First American Title | C224: 9 | D224: 2810750 | E224: 0.0008032845412 | F224: 0.0005102252052
B225: First Centennial Title | C225: 38 | D225: 12970400 | E225: 0.003391645841 | F225: 0.002354469448
B226: Ticor Title | C226: 5 | D226: 5346700 | E226: 0.0004462691896 | F226: 0.0009705669678
B227: Stewart Title | C227: 27 | D227: 8948300 | E227: 0.002409853624 | F227: 0.001624352292
A229: NEVADA STATE BANK | C229: 98 | D229: 127469780 | E229: 0.008746876116 | F229: 0.02313912467
B230: First American Title | C230: 24 | D230: 46933250 | E230: 0.00214209211 | F230: 0.008519621849
B231: First Centennial Title | C231: 43 | D231: 28300764 | E231: 0.00383791503 | F231: 0.005137334562
B232: Ticor Title | C232: 15 | D232: 47043225 | E232: 0.001338807569 | F232: 0.00853958521
B233: Stewart Title | C233: 16 | D233: 5192541 | E233: 0.001428061407 | F233: 0.0009425830463
A235: NEVADA STATE DEVELOPMENT CORPORATION | C235: 24 | D235: 15843000 | E235: 0.00214209211 | F235: 0.002875922059
B236: First American Title | C236: 3 | D236: 2044000 | E236: 0.0002677615137 | F236: 0.0003710398717
B237: First Centennial Title | C237: 9 | D237: 3430000 | E237: 0.0008032845412 | F237: 0.0006226354012
... 1575 more rows

Sheet BUILDER TRACKING
A1: BUILDER TRACKING
A2: ='OVERALL STATS'!A2 -> Reporting Period: JANUARY THROUGH DECEMBER, 2021
A4: BUILDER | B4: CLOSINGS | C4: DOLLARVOL | D4: AVERAGE | E4: % OF CLOSINGS | F4: % OF $$$ VOLUME
A5: DR HORTON INC | B5: 484 | C5: 219880808.2 | D5: 454299.1905 | E5: =Table2[[#This Row],[CLOSINGS]]/$B$81 -> 0.19437751 | F5: =Table2[[#This Row],[DOLLARVOL]]/$C$81 -> 0.1532795248
A6: TOLL NV LIMITED PARTNERSHIP | B6: 451 | C6: 326536429 | D6: 724027.5588 | E6: =Table2[[#This Row],[CLOSINGS]]/$B$81 -> 0.181124498 | F6: =Table2[[#This Row],[DOLLARVOL]]/$C$81 -> 0.2276294556
A7: LENNAR RENO LLC | B7: 430 | C7: 230317871 | D7: 535622.9558 | E7: =Table2[[#This Row],[CLOSINGS]]/$B$81 -> 0.1726907631 | F7: =Table2[[#This Row],[DOLLARVOL]]/$C$81 -> 0.1605552304
A8: JC NV FLATS LLC | B8: 86 | C8: 29637415 | D8: 344621.1047 | E8: =Table2[[#This Row],[CLOSINGS]]/$B$81 -> 0.03453815261 | F8: =Table2[[#This Row],[DOLLARVOL]]/$C$81 -> 0.02066032468
A9: SILVERADO EAGLE CANYON LLC | B9: 63 | C9: 32366947 | D9: 513761.0635 | E9: =Table2[[#This Row],[CLOSINGS]]/$B$81 -> 0.02530120482 | F9: =Table2[[#This Row],[DOLLARVOL]]/$C$81 -> 0.02256308905
A10: FALCON RIDGE BY DESERT WIND LP | B10: 61 | C10: 20206934 | D10: 331261.2131 | E10: =Table2[[#This Row],[CLOSINGS]]/$B$81 -> 0.02449799197 | F10: =Table2[[#This Row],[DOLLARVOL]]/$C$81 -> 0.01408631006
A11: TERRENO DEVELOPMENT LLC | B11: 56 | C11: 29501482 | D11: 526812.1786 | E11: =Table2[[#This Row],[CLOSINGS]]/$B$81 -> 0.02248995984 | F11: =Table2[[#This Row],[DOLLARVOL]]/$C$81 -> 0.0205655654
A12: WOODLAND VILLAGE PHASE 22 LLC | B12: 56 | C12: 24191904 | D12: 431998.2857 | E12: =Table2[[#This Row],[CLOSINGS]]/$B$81 -> 0.02248995984 | F12: =Table2[[#This Row],[DOLLARVOL]]/$C$81 -> 0.01686424377
A13: JC BLACKSTONE LLC | B13: 53 | C13: 28149759 | D13: 531127.5283 | E13: =Table2[[#This Row],[CLOSINGS]]/$B$81 -> 0.02128514056 | F13: =Table2[[#This Row],[DOLLARVOL]]/$C$81 -> 0.01962327553
A14: SHADOW RIDGE 7 LLC | B14: 51 | C14: 34451586 | D14: 675521.2941 | E14: =Table2[[#This Row],[CLOSINGS]]/$B$81 -> 0.02048192771 | F14: =Table2[[#This Row],[DOLLARVOL]]/$C$81 -> 0.02401629671
A15: TOLL SOUTH RENO LLC | B15: 50 | C15: 53757647 | D15: 1075152.94 | E15: =Table2[[#This Row],[CLOSINGS]]/$B$81 -> 0.02008032129 | F15: =Table2[[#This Row],[DOLLARVOL]]/$C$81 -> 0.03747460569
A16: PARADISO COMMUNITIES LLC | B16: 48 | C16: 18910298.5 | D16: 393964.5521 | E16: =Table2[[#This Row],[CLOSINGS]]/$B$81 -> 0.01927710843 | F16: =Table2[[#This Row],[DOLLARVOL]]/$C$81 -> 0.01318242184
A17: JC ESTANCIA LLC | B17: 45 | C17: 22336018 | D17: 496355.9556 | E17: =Table2[[#This Row],[CLOSINGS]]/$B$81 -> 0.01807228916 | F17: =Table2[[#This Row],[DOLLARVOL]]/$C$81 -> 0.01557050046
A18: TOLL NORTH RENO LLC | B18: 43 | C18: 47815529 | D18: 1111989.046 | E18: =Table2[[#This Row],[CLOSINGS]]/$B$81 -> 0.01726907631 | F18: =Table2[[#This Row],[DOLLARVOL]]/$C$81 -> 0.03333233866
A19: SILVER MEADOWS HOMES LLC | B19: 42 | C19: 19979114 | D19: 475693.1905 | E19: =Table2[[#This Row],[CLOSINGS]]/$B$81 -> 0.01686746988 | F19: =Table2[[#This Row],[DOLLARVOL]]/$C$81 -> 0.0139274961
A20: NORTHERN NEVADA HOMES LLC | B20: 38 | C20: 14370493 | D20: 378170.8684 | E20: =Table2[[#This Row],[CLOSINGS]]/$B$81 -> 0.01526104418 | F20: =Table2[[#This Row],[DOLLARVOL]]/$C$81 -> 0.01001771076
A21: WEDGE MEADOWS HOMES LLC | B21: 34 | C21: 27259021 | D21: 801735.9118 | E21: =Table2[[#This Row],[CLOSINGS]]/$B$81 -> 0.01365461847 | F21: =Table2[[#This Row],[DOLLARVOL]]/$C$81 -> 0.01900233958
A22: QUEST RENO LLC | B22: 33 | C22: 20108061 | D22: 609335.1818 | E22: =Table2[[#This Row],[CLOSINGS]]/$B$81 -> 0.01325301205 | F22: =Table2[[#This Row],[DOLLARVOL]]/$C$81 -> 0.01401738542
A23: NORTHGATE 2016 LLC | B23: 33 | C23: 14367022 | D23: 435364.303 | E23: =Table2[[#This Row],[CLOSINGS]]/$B$81 -> 0.01325301205 | F23: =Table2[[#This Row],[DOLLARVOL]]/$C$81 -> 0.01001529112
A24: TL BRIDLE GATE LP | B24: 29 | C24: 22465680 | D24: 774678.6207 | E24: =Table2[[#This Row],[CLOSINGS]]/$B$81 -> 0.01164658635 | F24: =Table2[[#This Row],[DOLLARVOL]]/$C$81 -> 0.0156608882
A25: REGENCY PARK HOMES INC | B25: 28 | C25: 10362054 | D25: 370073.3571 | E25: =Table2[[#This Row],[CLOSINGS]]/$B$81 -> 0.01124497992 | F25: =Table2[[#This Row],[DOLLARVOL]]/$C$81 -> 0.00722341675
A26: RYDER MIRAMONTE LLC | B26: 27 | C26: 15660573 | D26: 580021.2222 | E26: =Table2[[#This Row],[CLOSINGS]]/$B$81 -> 0.01084337349 | F26: =Table2[[#This Row],[DOLLARVOL]]/$C$81 -> 0.01091702913
A27: VP RENO LLC | B27: 27 | C27: 11843501.5 | D27: 438648.2037 | E27: =Table2[[#This Row],[CLOSINGS]]/$B$81 -> 0.01084337349 | F27: =Table2[[#This Row],[DOLLARVOL]]/$C$81 -> 0.008256137935
A28: NEVADA FINISH LLC | B28: 24 | C28: 9898816 | D28: 412450.6667 | E28: =Table2[[#This Row],[CLOSINGS]]/$B$81 -> 0.009638554217 | F28: =Table2[[#This Row],[DOLLARVOL]]/$C$81 -> 0.006900492248
A29: BATES STRINGER RENO LLC | B29: 19 | C29: 21452685 | D29: 1129088.684 | E29: =Table2[[#This Row],[CLOSINGS]]/$B$81 -> 0.007630522088 | F29: =Table2[[#This Row],[DOLLARVOL]]/$C$81 -> 0.01495472656
A30: HOLCOMB BY DESERT WIND LP | B30: 15 | C30: 11984522 | D30: 798968.1333 | E30: =Table2[[#This Row],[CLOSINGS]]/$B$81 -> 0.006024096386 | F30: =Table2[[#This Row],[DOLLARVOL]]/$C$81 -> 0.008354443719
A31: SUNSET JENUANE 2016 LLC | B31: 15 | C31: 11244160.7 | D31: 749610.7133 | E31: =Table2[[#This Row],[CLOSINGS]]/$B$81 -> 0.006024096386 | F31: =Table2[[#This Row],[DOLLARVOL]]/$C$81 -> 0.007838335792
A32: ARTISAN MYSTIC MOUNTAIN LLC | B32: 14 | C32: 11216930 | D32: 801209.2857 | E32: =Table2[[#This Row],[CLOSINGS]]/$B$81 -> 0.00562248996 | F32: =Table2[[#This Row],[DOLLARVOL]]/$C$81 -> 0.007819353195
A33: RANCHO HILLS BY DESERT WIND LP | B33: 14 | C33: 4020403 | D33: 287171.6429 | E33: =Table2[[#This Row],[CLOSINGS]]/$B$81 -> 0.00562248996 | F33: =Table2[[#This Row],[DOLLARVOL]]/$C$81 -> 0.002802634147
A34: SILVERADO SKY RIDGE LLC | B34: 13 | C34: 7678505.5 | D34: 590654.2692 | E34: =Table2[[#This Row],[CLOSINGS]]/$B$81 -> 0.005220883534 | F34: =Table2[[#This Row],[DOLLARVOL]]/$C$81 -> 0.005352707605
A35: SILVERADO EAGLE CANYON RANCH LLC | B35: 12 | C35: 7662593 | D35: 638549.4167 | E35: =Table2[[#This Row],[CLOSINGS]]/$B$81 -> 0.004819277108 | F35: =Table2[[#This Row],[DOLLARVOL]]/$C$81 -> 0.005341614957
A36: PRESTON HOMES LLC | B36: 11 | C36: 8165879 | D36: 742352.6364 | E36: =Table2[[#This Row],[CLOSINGS]]/$B$81 -> 0.004417670683 | F36: =Table2[[#This Row],[DOLLARVOL]]/$C$81 -> 0.005692457031
A37: THREE R PROPERTIES NEVADA INC | B37: 10 | C37: 6433370 | D37: 643337 | E37: =Table2[[#This Row],[CLOSINGS]]/$B$81 -> 0.004016064257 | F37: =Table2[[#This Row],[DOLLARVOL]]/$C$81 -> 0.004484720174
A38: HIGH STREET TOWNHOMES LLC | B38: 8 | C38: 3993000 | D38: 499125 | E38: =Table2[[#This Row],[CLOSINGS]]/$B$81 -> 0.003212851406 | F38: =Table2[[#This Row],[DOLLARVOL]]/$C$81 -> 0.002783531439
A39: PARC FORET INC | B39: 7 | C39: 15024055.88 | D39: 2146293.697 | E39: =Table2[[#This Row],[CLOSINGS]]/$B$81 -> 0.00281124498 | F39: =Table2[[#This Row],[DOLLARVOL]]/$C$81 -> 0.01047331127
A40: TOWN CENTER TH LLC | B40: 5 | C40: 2840895 | D40: 568179 | E40: =Table2[[#This Row],[CLOSINGS]]/$B$81 -> 0.002008032129 | F40: =Table2[[#This Row],[DOLLARVOL]]/$C$81 -> 0.00198039583
A41: JC ESTANCIA NEVADA LLC | B41: 4 | C41: 1734503 | D41: 433625.75 | E41: =Table2[[#This Row],[CLOSINGS]]/$B$81 -> 0.001606425703 | F41: =Table2[[#This Row],[DOLLARVOL]]/$C$81 -> 0.00120912688
A42: D R HORTON INC | B42: 4 | C42: 1685999 | D42: 421499.75 | E42: =Table2[[#This Row],[CLOSINGS]]/$B$81 -> 0.001606425703 | F42: =Table2[[#This Row],[DOLLARVOL]]/$C$81 -> 0.001175314606
A43: MANZANITA LANE LLC | B43: 3 | C43: 4427150.89 | D43: 1475716.963 | E43: =Table2[[#This Row],[CLOSINGS]]/$B$81 -> 0.001204819277 | F43: =Table2[[#This Row],[DOLLARVOL]]/$C$81 -> 0.003086179236
A44: BATES STRINGER-RENO LLC | B44: 3 | C44: 2827652 | D44: 942550.6667 | E44: =Table2[[#This Row],[CLOSINGS]]/$B$81 -> 0.001204819277 | F44: =Table2[[#This Row],[DOLLARVOL]]/$C$81 -> 0.001971164097
A45: THREE R PROPERTIES NEVADA INC; 3 R PROPERTIES NEVADA INC | B45: 3 | C45: 1631376 | D45: 543792 | E45: =Table2[[#This Row],[CLOSINGS]]/$B$81 -> 0.001204819277 | F45: =Table2[[#This Row],[DOLLARVOL]]/$C$81 -> 0.001137236761
A46: PINE BLUFF PROPERTIES LLC | B46: 2 | C46: 2439248 | D46: 1219624 | E46: =Table2[[#This Row],[CLOSINGS]]/$B$81 -> 0.0008032128514 | F46: =Table2[[#This Row],[DOLLARVOL]]/$C$81 -> 0.001700406586
A47: RYDER SHADOW LLC | B47: 2 | C47: 1500100 | D47: 750050 | E47: =Table2[[#This Row],[CLOSINGS]]/$B$81 -> 0.0008032128514 | F47: =Table2[[#This Row],[DOLLARVOL]]/$C$81 -> 0.001045723895
A48: TERRANO DEVELOPMENT LLC | B48: 2 | C48: 1023689 | D48: 511844.5 | E48: =Table2[[#This Row],[CLOSINGS]]/$B$81 -> 0.0008032128514 | F48: =Table2[[#This Row],[DOLLARVOL]]/$C$81 -> 0.0007136164577
A49: FOOTHILLS AT WINGFIELD LLC | B49: 1 | C49: 4500000 | D49: 4500000 | E49: =Table2[[#This Row],[CLOSINGS]]/$B$81 -> 0.0004016064257 | F49: =Table2[[#This Row],[DOLLARVOL]]/$C$81 -> 0.003136962554
A50: TOLL NORTH NV LLC | B50: 1 | C50: 1147225 | D50: 1147225 | E50: =Table2[[#This Row],[CLOSINGS]]/$B$81 -> 0.0004016064257 | F50: =Table2[[#This Row],[DOLLARVOL]]/$C$81 -> 0.0007997337479
A51: SUNSET JENUANCE 2016 LLC | B51: 1 | C51: 931083 | D51: 931083 | E51: =Table2[[#This Row],[CLOSINGS]]/$B$81 -> 0.0004016064257 | F51: =Table2[[#This Row],[DOLLARVOL]]/$C$81 -> 0.0006490605567
A52: SBE 64 POINTE LLC | B52: 1 | C52: 810440 | D52: 810440 | E52: =Table2[[#This Row],[CLOSINGS]]/$B$81 -> 0.0004016064257 | F52: =Table2[[#This Row],[DOLLARVOL]]/$C$81 -> 0.0005649599849
A53: PRESTON HOME LLC | B53: 1 | C53: 765000 | D53: 765000 | E53: =Table2[[#This Row],[CLOSINGS]]/$B$81 -> 0.0004016064257 | F53: =Table2[[#This Row],[DOLLARVOL]]/$C$81 -> 0.0005332836341
A54: HOLCOMB BY DESERT WIND | B54: 1 | C54: 741412 | D54: 741412 | E54: =Table2[[#This Row],[CLOSINGS]]/$B$81 -> 0.0004016064257 | F54: =Table2[[#This Row],[DOLLARVOL]]/$C$81 -> 0.0005168403735
A55: HOCLOMB BY DESERT WIND LP | B55: 1 | C55: 730687 | D55: 730687 | E55: =Table2[[#This Row],[CLOSINGS]]/$B$81 -> 0.0004016064257 | F55: =Table2[[#This Row],[DOLLARVOL]]/$C$81 -> 0.0005093639461
A56: RANCHARRAH HOLDINGS LLC | B56: 1 | C56: 725000 | D56: 725000 | E56: =Table2[[#This Row],[CLOSINGS]]/$B$81 -> 0.0004016064257 | F56: =Table2[[#This Row],[DOLLARVOL]]/$C$81 -> 0.0005053995225
A57: HOLCOMB RANCH BY DESERT WIND LP | B57: 1 | C57: 723822 | D57: 723822 | E57: =Table2[[#This Row],[CLOSINGS]]/$B$81 -> 0.0004016064257 | F57: =Table2[[#This Row],[DOLLARVOL]]/$C$81 -> 0.0005045783354
A58: SUSNET JENUANE 2016 LLC | B58: 1 | C58: 627812 | D58: 627812 | E58: =Table2[[#This Row],[CLOSINGS]]/$B$81 -> 0.0004016064257 | F58: =Table2[[#This Row],[DOLLARVOL]]/$C$81 -> 0.0004376494966
A59: SHADOW RIDGE 7 | B59: 1 | C59: 620133 | D59: 620133 | E59: =Table2[[#This Row],[CLOSINGS]]/$B$81 -> 0.0004016064257 | F59: =Table2[[#This Row],[DOLLARVOL]]/$C$81 -> 0.0004322964443
A60: LADERA VENTURES II LLC | B60: 1 | C60: 619983 | D60: 619983 | E60: =Table2[[#This Row],[CLOSINGS]]/$B$81 -> 0.0004016064257 | F60: =Table2[[#This Row],[DOLLARVOL]]/$C$81 -> 0.0004321918789
A61: MONTREUX DEVELOPMENT GROUP LLC | B61: 1 | C61: 609900 | D61: 609900 | E61: =Table2[[#This Row],[CLOSINGS]]/$B$81 -> 0.0004016064257 | F61: =Table2[[#This Row],[DOLLARVOL]]/$C$81 -> 0.0004251629914
A62: 3 R PROPERTIES NEVADA INC | B62: 1 | C62: 578000 | D62: 578000 | E62: =Table2[[#This Row],[CLOSINGS]]/$B$81 -> 0.0004016064257 | F62: =Table2[[#This Row],[DOLLARVOL]]/$C$81 -> 0.0004029254124
A63: TOLL NV LIMITED PARTNERHSIP | B63: 1 | C63: 574314 | D63: 574314 | E63: =Table2[[#This Row],[CLOSINGS]]/$B$81 -> 0.0004016064257 | F63: =Table2[[#This Row],[DOLLARVOL]]/$C$81 -> 0.0004003558916
A64: GRCSMC LLC SERIES 2 | B64: 1 | C64: 500000 | D64: 500000 | E64: =Table2[[#This Row],[CLOSINGS]]/$B$81 -> 0.0004016064257 | F64: =Table2[[#This Row],[DOLLARVOL]]/$C$81 -> 0.0003485513948
A65: SILVER MEADOW HOMES LLC | B65: 1 | C65: 490247 | D65: 490247 | E65: =Table2[[#This Row],[CLOSINGS]]/$B$81 -> 0.0004016064257 | F65: =Table2[[#This Row],[DOLLARVOL]]/$C$81 -> 0.0003417525513
A66: ORGILL JONATHAN C TR | B66: 1 | C66: 453986 | D66: 453986 | E66: =Table2[[#This Row],[CLOSINGS]]/$B$81 -> 0.0004016064257 | F66: =Table2[[#This Row],[DOLLARVOL]]/$C$81 -> 0.0003164749071
A67: SIERRA SOLITUDE LLC | B67: 1 | C67: 451000 | D67: 451000 | E67: =Table2[[#This Row],[CLOSINGS]]/$B$81 -> 0.0004016064257 | F67: =Table2[[#This Row],[DOLLARVOL]]/$C$81 -> 0.0003143933582
A68: BROKEN SPUR LLC | B68: 1 | C68: 443435 | D68: 443435 | E68: =Table2[[#This Row],[CLOSINGS]]/$B$81 -> 0.0004016064257 | F68: =Table2[[#This Row],[DOLLARVOL]]/$C$81 -> 0.0003091197755
A69: FALCON RIDGE BY DESERT WIND | B69: 1 | C69: 419990 | D69: 419990 | E69: =Table2[[#This Row],[CLOSINGS]]/$B$81 -> 0.0004016064257 | F69: =Table2[[#This Row],[DOLLARVOL]]/$C$81 -> 0.0002927762006
A70: PARIDISO COMMUNITIES LLC | B70: 1 | C70: 413819 | D70: 413819 | E70: =Table2[[#This Row],[CLOSINGS]]/$B$81 -> 0.0004016064257 | F70: =Table2[[#This Row],[DOLLARVOL]]/$C$81 -> 0.0002884743793
A71: JC ESTANCIAL LLC | B71: 1 | C71: 408800 | D71: 408800 | E71: =Table2[[#This Row],[CLOSINGS]]/$B$81 -> 0.0004016064257 | F71: =Table2[[#This Row],[DOLLARVOL]]/$C$81 -> 0.0002849756204
A72: RIVER BEND INVESTMENTS LLC | B72: 1 | C72: 400000 | D72: 400000 | E72: =Table2[[#This Row],[CLOSINGS]]/$B$81 -> 0.0004016064257 | F72: =Table2[[#This Row],[DOLLARVOL]]/$C$81 -> 0.0002788411159
A73: RIVERWALK DEVELOPMENT LLC | B73: 1 | C73: 395000 | D73: 395000 | E73: =Table2[[#This Row],[CLOSINGS]]/$B$81 -> 0.0004016064257 | F73: =Table2[[#This Row],[DOLLARVOL]]/$C$81 -> 0.0002753556019
A74: JV GS LLC | B74: 1 | C74: 385000 | D74: 385000 | E74: =Table2[[#This Row],[CLOSINGS]]/$B$81 -> 0.0004016064257 | F74: =Table2[[#This Row],[DOLLARVOL]]/$C$81 -> 0.000268384574
A75: PARADISCO COMMUNITIES LLC | B75: 1 | C75: 368607 | D75: 368607 | E75: =Table2[[#This Row],[CLOSINGS]]/$B$81 -> 0.0004016064257 | F75: =Table2[[#This Row],[DOLLARVOL]]/$C$81 -> 0.000256956968
A76: FALCON BY DESERT WIND LP | B76: 1 | C76: 361301 | D76: 361301 | E76: =Table2[[#This Row],[CLOSINGS]]/$B$81 -> 0.0004016064257 | F76: =Table2[[#This Row],[DOLLARVOL]]/$C$81 -> 0.000251863935
A77: ARROW CANYON LLC | B77: 1 | C77: 340000 | D77: 340000 | E77: =Table2[[#This Row],[CLOSINGS]]/$B$81 -> 0.0004016064257 | F77: =Table2[[#This Row],[DOLLARVOL]]/$C$81 -> 0.0002370149485
A78: CANTERBURY HOMES LLC | B78: 1 | C78: 260000 | D78: 260000 | E78: =Table2[[#This Row],[CLOSINGS]]/$B$81 -> 0.0004016064257 | F78: =Table2[[#This Row],[DOLLARVOL]]/$C$81 -> 0.0001812467253
A79: WOODCHASE CONDOMINIUMS INC | B79: 1 | C79: 215000 | D79: 215000 | E79: =Table2[[#This Row],[CLOSINGS]]/$B$81 -> 0.0004016064257 | F79: =Table2[[#This Row],[DOLLARVOL]]/$C$81 -> 0.0001498770998
A80: ROSEHAVEN PROPERTIES LLC; ROSEHAVEN PROPERTIES LL | B80: 1 | C80: 136000 | D80: 136000 | E80: =Table2[[#This Row],[CLOSINGS]]/$B$81 -> 0.0004016064257 | F80: =Table2[[#This Row],[DOLLARVOL]]/$C$81 -> 9.48059794e-05
A81: GRAND TOTAL | B81: =SUM(B5:B80) -> 2490 | C81: =SUM(C5:C80) -> 1434508676 | E81: =SUM(E5:E80) -> 1 | F81: =SUM(F5:F80) -> 1

Sheet LOANS_LIST (hidden)
A1: FULLNAME | B1: RECBY | C1: TYPELOAN | D1: APN | E1: DOCNUM | F1: AMOUNT | G1: RECDATE | H1: LENDER | L1: 11205
A2: Acme Title and Escrow | B2: ACT | C2: CONVENTIONAL | D2: 141-532-06 | E2: 5178591 | F2: 444300 | G2: 44327 | H2: BAY EQUITY LLC
A3: Acme Title and Escrow | B3: ACT | C3: CONVENTIONAL | D3: 554-091-18 | E3: 5229013 | F3: 148500 | G3: 44461 | H3: WELLS FARGO BANK NA
A4: Acme Title and Escrow | B4: ACT | C4: VA | D4: 082-061-09 | E4: 5128009 | F4: 353935 | G4: 44209 | H4: GUILD MORTGAGE COMPANY LLC
A5: Acme Title and Escrow | B5: ACT | C5: CONVENTIONAL | D5: 526-362-01 | E5: 5234284 | F5: 521000 | G5: 44475 | H5: ONETRUST HOME LOANS
A6: Acme Title and Escrow | B6: ACT | C6: CONVENTIONAL | D6: 530-635-04 | E6: 5155924 | F6: 415000 | G6: 44277 | H6: BAY EQUITY LLC
A7: Acme Title and Escrow | B7: ACT | C7: CONVENTIONAL | D7: 141-613-08 | E7: 5151520 | F7: 349000 | G7: 44265 | H7: BAY EQUITY LLC
A8: Acme Title and Escrow | B8: ACT | C8: CONVENTIONAL | D8: 001-135-25 | E8: 5201739 | F8: 277000 | G8: 44385 | H8: INFINITY EQUITY GROUP LLC
A9: Acme Title and Escrow | B9: ACT | C9: CONVENTIONAL | D9: 006-341-04 | E9: 5151901 | F9: 295500 | G9: 44266 | H9: TIAA FSB
A10: Acme Title and Escrow | B10: ACT | C10: CONVENTIONAL | D10: 002-495-01 | E10: 5126266 | F10: 233000 | G10: 44204 | H10: ONETRUST HOME LOANS
A11: Acme Title and Escrow | B11: ACT | C11: CONVENTIONAL | D11: 086-671-23 | E11: 5202890 | F11: 93500 | G11: 44389 | H11: UNITED FEDERAL CREDIT UNION
A12: Acme Title and Escrow | B12: ACT | C12: FHA | D12: 504-741-11 | E12: 5230747 | F12: 223850 | G12: 44466 | H12: GUILD MORTGAGE COMPANY LLC
A13: Acme Title and Escrow | B13: ACT | C13: CONVENTIONAL | D13: 165-292-08 | E13: 5197713 | F13: 523000 | G13: 44375 | H13: NEW AMERICAN FUNDING
A14: Acme Title and Escrow | B14: ACT | C14: CONVENTIONAL | D14: 232-551-03 | E14: 5152606 | F14: 179600 | G14: 44267 | H14: CALCON MUTUAL MORTGAGE LLC
A15: Acme Title and Escrow | B15: ACT | C15: CONVENTIONAL | D15: 502-532-10 | E15: 5241114 | F15: 441000 | G15: 44494 | H15: FINANCE OF AMERICA MORTGAGE LLC
A16: Acme Title and Escrow | B16: ACT | C16: CONVENTIONAL | D16: 526-072-07 | E16: 5263085 | F16: 409000 | G16: 44558 | H16: RESIDENTIAL BANCORP
A17: Acme Title and Escrow | B17: ACT | C17: CONVENTIONAL | D17: 141-401-28 | E17: 5127093 | F17: 313000 | G17: 44207 | H17: BAY EQUITY LLC
A18: Acme Title and Escrow | B18: ACT | C18: CONVENTIONAL | D18: 045-612-14 | E18: 5124590 | F18: 510350 | G18: 44201 | H18: ONETRUST HOME LOANS
A19: Acme Title and Escrow | B19: ACT | C19: CONVENTIONAL | D19: 033-221-19 | E19: 5262538 | F19: 137000 | G19: 44557 | H19: BROKER SOLUTIONS INC
A20: Acme Title and Escrow | B20: ACT | C20: CONVENTIONAL | D20: 550-584-06 | E20: 5172523 | F20: 292000 | G20: 44314 | H20: PARAMOUNT RESIDENTIAL MORTGAGE GROUP INC
A21: Acme Title and Escrow | B21: ACT | C21: CONVENTIONAL | D21: 026-471-15 | E21: 5259799 | F21: 300000 | G21: 44547 | H21: GREATER NEVADA MORTGAGE
A22: Acme Title and Escrow | B22: ACT | C22: CONVENTIONAL | D22: 032-082-07 | E22: 5231786 | F22: 325000 | G22: 44468 | H22: BAY EQUITY LLC
A23: Acme Title and Escrow | B23: ACT | C23: CONVENTIONAL | D23: 017-492-19 | E23: 5152623 | F23: 267000 | G23: 44267 | H23: BAY EQUITY LLC
A24: Acme Title and Escrow | B24: ACT | C24: VA | D24: 530-922-04 | E24: 5154694 | F24: 477000 | G24: 44273 | H24: FINANCE OF AMERICA MORTGAGE LLC
A25: Acme Title and Escrow | B25: ACT | C25: CONVENTIONAL | D25: 143-152-10 | E25: 5127480 | F25: 287500 | G25: 44208 | H25: ONETRUST HOME LOANS
A26: Acme Title and Escrow | B26: ACT | C26: CONVENTIONAL | D26: 508-171-06 | E26: 5251774 | F26: 100000 | G26: 44524 | H26: WELLS FARGO BANK NA
A27: Acme Title and Escrow | B27: ACT | C27: CONVENTIONAL | D27: 080-313-03 | E27: 5127115 | F27: 232500 | G27: 44207 | H27: ONETRUST HOME LOANS
A28: Acme Title and Escrow | B28: ACT | C28: CONVENTIONAL | D28: 530-673-05 | E28: 5127631 | F28: 231140 | G28: 44208 | H28: ON Q FINANCIAL INC
A29: Acme Title and Escrow | B29: ACT | C29: CONVENTIONAL | D29: 550-354-15 | E29: 5185021 | F29: 200700 | G29: 44341 | H29: GUILD MORTGAGE COMPANY LLC
A30: Acme Title and Escrow | B30: ACT | C30: CONVENTIONAL | D30: 018-163-01 | E30: 5155760 | F30: 270000 | G30: 44277 | H30: BAY EQUITY LLC
A31: Acme Title and Escrow | B31: ACT | C31: CONVENTIONAL | D31: 526-405-03 | E31: 5235232 | F31: 275000 | G31: 44477 | H31: WOLFE FINANCIAL INC
A32: Acme Title and Escrow | B32: ACT | C32: CONVENTIONAL | D32: 526-571-03 | E32: 5229363 | F32: 300000 | G32: 44461 | H32: WOLFE FINANCIAL INC
A33: Acme Title and Escrow | B33: ACT | C33: CONVENTIONAL | D33: 200-211-01 | E33: 5127378 | F33: 272000 | G33: 44208 | H33: GUILD MORTGAGE COMPANY LLC
A34: Acme Title and Escrow | B34: ACT | C34: CONVENTIONAL | D34: 027-500-23 | E34: 5252596 | F34: 117520 | G34: 44529 | H34: WELLS FARGO BANK NA
A35: Acme Title and Escrow | B35: ACT | C35: FHA | D35: 200-163-02 | E35: 5172454 | F35: 305250 | G35: 44314 | H35: CALCON MUTUAL MORTGAGE LLC
A36: Acme Title and Escrow | B36: ACT | C36: CONVENTIONAL | D36: 030-153-10 | E36: 5173463 | F36: 288000 | G36: 44315 | H36: INFINITY EQUITY GROUP INC
A37: Acme Title and Escrow | B37: ACT | C37: CONVENTIONAL | D37: 021-221-10 | E37: 5252651 | F37: 200000 | G37: 44529 | H37: WELLS FARGO BANK NA
A38: Acme Title and Escrow | B38: ACT | C38: CONVENTIONAL | D38: 039-122-37 | E38: 5127196 | F38: 249000 | G38: 44207 | H38: AMERICAN FINANCIAL NETWORK INC
A39: Acme Title and Escrow | B39: ACT | C39: CONVENTIONAL | D39: 152-252-10 | E39: 5257337 | F39: 750000 | G39: 44540 | H39: WELLS FARGO BANK NA
A40: Acme Title and Escrow | B40: ACT | C40: FHA | D40: 232-441-04 | E40: 5250534 | F40: 468050 | G40: 44522 | H40: BAY EQUITY LLC
A41: Acme Title and Escrow | B41: ACT | C41: HARD MONEY | D41: 080-450-06 | E41: 5218433 | F41: 84000 | G41: 44432 | H41: BLACK BUTCH
A42: Acme Title and Escrow | B42: ACT | C42: CONVENTIONAL | D42: 003-562-08 | E42: 5212608 | F42: 314500 | G42: 44414 | H42: CALCON MUTUAL MORTGAGE LLC
A43: Acme Title and Escrow | B43: ACT | C43: CONVENTIONAL | D43: 200-153-14 | E43: 5137043 | F43: 239000 | G43: 44229 | H43: GREATER NEVADA MORTGAGE LLC
A44: Acme Title and Escrow | B44: ACT | C44: CONVENTIONAL | D44: 530-051-01 | E44: 5243750 | F44: 332000 | G44: 44501 | H44: EVERGREEN MONEYSOURCE MORTGAGE COMPANY
A45: Acme Title and Escrow | B45: ACT | C45: CONVENTIONAL | D45: 050-450-17 | E45: 5137122 | F45: 181750 | G45: 44229 | H45: ON Q FINANCIAL INC
A46: Acme Title and Escrow | B46: ACT | C46: CONVENTIONAL | D46: 001-135-05 | E46: 5197545 | F46: 340000 | G46: 44375 | H46: WOLFE FINANCIAL INC
A47: Acme Title and Escrow | B47: ACT | C47: CONVENTIONAL | D47: 530-943-07 | E47: 5142873 | F47: 198000 | G47: 44244 | H47: CALCON MUTUAL MORTGAGE LLC
A48: Acme Title and Escrow | B48: ACT | C48: COMMERCIAL | D48: 034-372-16 | E48: 5143281 | F48: 533647.69 | G48: 44245 | H48: UMPQUA BANK
A49: Acme Title and Escrow | B49: ACT | C49: FHA | D49: 084-180-08 | E49: 5142831 | F49: 114214 | G49: 44244 | H49: GUILD MORTGAGE COMPANY LLC
A50: Acme Title and Escrow | B50: ACT | C50: CONVENTIONAL | D50: 036-553-01 | E50: 5136766 | F50: 108500 | G50: 44229 | H50: WELLS FARGO BANK NA
A51: Acme Title and Escrow | B51: ACT | C51: CONVENTIONAL | D51: 208-563-06 | E51: 5144573 | F51: 111000 | G51: 44249 | H51: FINANCE OF AMERICA MORTGAGE LLC
A52: Acme Title and Escrow | B52: ACT | C52: CONVENTIONAL | D52: 514-581-03 | E52: 5184940 | F52: 495000 | G52: 44341 | H52: CALCON MUTUAL MORTGAGE LLC
A53: Acme Title and Escrow | B53: ACT | C53: VA | D53: 530-582-13 | E53: 5144700 | F53: 400932 | G53: 44249 | H53: CALCON MUTUAL MORTGAGE LLC
A54: Acme Title and Escrow | B54: ACT | C54: CONVENTIONAL | D54: 516-072-04 | E54: 5259816 | F54: 389600 | G54: 44547 | H54: WELLS FARGO BANK NA
A55: Acme Title and Escrow | B55: ACT | C55: FHA | D55: 086-784-06 | E55: 5186956 | F55: 201915 | G55: 44344 | H55: PARAMOUNT RESIDENTIAL MORTGAGE GROUP INC
A56: Acme Title and Escrow | B56: ACT | C56: CONVENTIONAL | D56: 017-073-43 | E56: 5237206 | F56: 101000 | G56: 44483 | H56: UNITED FEDERAL CREDIT UNION
A57: Acme Title and Escrow | B57: ACT | C57: CONVENTIONAL | D57: 140-062-03 | E57: 5211813 | F57: 281000 | G57: 44412 | H57: UNITED FEDERAL CREDIT UNION
A58: Acme Title and Escrow | B58: ACT | C58: CONVENTIONAL | D58: 085-523-04 | E58: 5241762 | F58: 219000 | G58: 44495 | H58: UNITED WHOLESALE MORTGAGE LLC
A59: Acme Title and Escrow | B59: ACT | C59: CONVENTIONAL | D59: 502-052-18 | E59: 5197477 | F59: 217000 | G59: 44375 | H59: GUILD MORTGAGE COMPANY LLC
A60: Acme Title and Escrow | B60: ACT | C60: CONVENTIONAL | D60: 024-132-14 | E60: 5251821 | F60: 435000 | G60: 44524 | H60: BAY EQUITY LLC
A61: Acme Title and Escrow | B61: ACT | C61: CONVENTIONAL | D61: 001-393-12 | E61: 5251812 | F61: 325000 | G61: 44524 | H61: NORTHPOINTE BANK
A62: Acme Title and Escrow | B62: ACT | C62: CONVENTIONAL | D62: 003-801-39 | E62: 5251810 | F62: 242000 | G62: 44524 | H62: BAY EQUITY LLC
A63: Acme Title and Escrow | B63: ACT | C63: CONVENTIONAL | D63: 017-342-18 | E63: 5152647 | F63: 460000 | G63: 44267 | H63: BAY EQUITY LLC
A64: Acme Title and Escrow | B64: ACT | C64: FHA | D64: 028-114-25 | E64: 5230733 | F64: 284900 | G64: 44466 | H64: GUILD MORTGAGE COMPANY LLC
A65: Acme Title and Escrow | B65: ACT | C65: VA | D65: 534-112-14 | E65: 5136864 | F65: 382250 | G65: 44229 | H65: GREATER NEVADA LLC
A66: Acme Title and Escrow | B66: ACT | C66: CONVENTIONAL | D66: 208-041-03 | E66: 5144708 | F66: 412800 | G66: 44249 | H66: GUILD MORTGAGE COMPANY LLC
A67: Acme Title and Escrow | B67: ACT | C67: FHA | D67: 028-212-21 | E67: 5242666 | F67: 223341 | G67: 44497 | H67: INSPIRE HOME LOANS INC
A68: Acme Title and Escrow | B68: ACT | C68: CONVENTIONAL | D68: 002-344-06 | E68: 5159548 | F68: 303000 | G68: 44285 | H68: CALCON MUTUAL MORTGAGE LLC
A69: Acme Title and Escrow | B69: ACT | C69: HOME EQUITY | D69: 047-033-03 | E69: 5163167 | F69: 100000 | G69: 44293 | H69: CALCON MUTUAL MORTGAGE LLC
A70: Acme Title and Escrow | B70: ACT | C70: CONVENTIONAL | D70: 145-283-03 | E70: 5218640 | F70: 540000 | G70: 44432 | H70: BAY EQUITY LLC
A71: Acme Title and Escrow | B71: ACT | C71: CONVENTIONAL | D71: 047-033-03 | E71: 5163166 | F71: 548250 | G71: 44293 | H71: CALCON MUTUAL MORTGAGE LLC
A72: Acme Title and Escrow | B72: ACT | C72: CONVENTIONAL | D72: 080-823-01 | E72: 5163113 | F72: 328800 | G72: 44293 | H72: ISERVE RESIDENTIAL LENDING LLC
A73: Acme Title and Escrow | B73: ACT | C73: CONVENTIONAL | D73: 003-340-35 | E73: 5159642 | F73: 347000 | G73: 44285 | H73: INFINITY EQUITY GROUP INC
A74: Acme Title and Escrow | B74: ACT | C74: CONVENTIONAL | D74: 010-162-14 | E74: 5175592 | F74: 179500 | G74: 44320 | H74: CALCON MUTUAL MORTGAGE LLC
A75: Acme Title and Escrow | B75: ACT | C75: CONVENTIONAL | D75: 086-223-03 | E75: 5212537 | F75: 318000 | G75: 44414 | H75: BAY EQUITY LLC
A76: Acme Title and Escrow | B76: ACT | C76: CONVENTIONAL | D76: 165-143-08 | E76: 5205419 | F76: 457500 | G76: 44396 | H76: FINANCE OF AMERICA MORTGAGE LLC
A77: Acme Title and Escrow | B77: ACT | C77: CONVENTIONAL | D77: 514-572-02 | E77: 5207076 | F77: 360000 | G77: 44400 | H77: UNITED FEDERAL CREDIT UNION
A78: Acme Title and Escrow | B78: ACT | C78: CONVENTIONAL | D78: 033-033-14 | E78: 5167905 | F78: 161500 | G78: 44302 | H78: LOANDEPOT.COM LLC
A79: Acme Title and Escrow | B79: ACT | C79: CONVENTIONAL | D79: 006-032-37 | E79: 5170775 | F79: 120000 | G79: 44309 | H79: CARDINAL FINANCIAL COMPANY LIMITED PARTNERSIP
A80: Acme Title and Escrow | B80: ACT | C80: CONVENTIONAL | D80: 556-451-06 | E80: 5205129 | F80: 176000 | G80: 44396 | H80: MANN MORTGAGE LLC
A81: Acme Title and Escrow | B81: ACT | C81: CONVENTIONAL | D81: 508-301-34 | E81: 5196312 | F81: 276250 | G81: 44371 | H81: BAY EQUITY LLC
A82: Acme Title and Escrow | B82: ACT | C82: CONVENTIONAL | D82: 011-594-04 | E82: 5128963 | F82: 195000 | G82: 44211 | H82: NEW AMERICAN FUNDING
A83: Acme Title and Escrow | B83: ACT | C83: CONVENTIONAL | D83: 050-303-21 | E83: 5226554 | F83: 301500 | G83: 44454 | H83: NEW AMERICAN FUNDING
A84: Acme Title and Escrow | B84: ACT | C84: CONVENTIONAL | D84: 036-162-11 | E84: 5205263 | F84: 210000 | G84: 44396 | H84: MOVEMENT MORTGAGE LLC
A85: Acme Title and Escrow | B85: ACT | C85: CONVENTIONAL | D85: 530-381-02 | E85: 5248198 | F85: 364000 | G85: 44515 | H85: WOLFE FINANCIAL INC
A86: Acme Title and Escrow | B86: ACT | C86: CONVENTIONAL | D86: 003-662-10 | E86: 5195956 | F86: 137000 | G86: 44370 | H86: WELLS FARGO BANK NA
A87: Acme Title and Escrow | B87: ACT | C87: CONVENTIONAL | D87: 035-623-07 | E87: 5205786 | F87: 328000 | G87: 44397 | H87: ALL WESTERN MORTGAGE INC
A88: Acme Title and Escrow | B88: ACT | C88: CONVENTIONAL | D88: 036-183-12 | E88: 5226512 | F88: 330000 | G88: 44454 | H88: BAY EQUITY LLC
A89: Acme Title and Escrow | B89: ACT | C89: CONVENTIONAL | D89: 550-113-06 | E89: 5205787 | F89: 291000 | G89: 44397 | H89: GUILD MORTGAGE COMPANY LLC
A90: Acme Title and Escrow | B90: ACT | C90: CONVENTIONAL | D90: 013-442-29 | E90: 5205797 | F90: 250000 | G90: 44397 | H90: WELLS FARGO BANK NA
A91: Acme Title and Escrow | B91: ACT | C91: FHA | D91: 504-571-14 | E91: 5156446 | F91: 332266 | G91: 44278 | H91: WOLFE FINANCIAL INC
A92: Acme Title and Escrow | B92: ACT | C92: CONVENTIONAL | D92: 140-442-07 | E92: 5154871 | F92: 352000 | G92: 44273 | H92: ON Q FINANCIAL INC
A93: Acme Title and Escrow | B93: ACT | C93: CONVENTIONAL | D93: 009-111-03 | E93: 5128994 | F93: 528000 | G93: 44211 | H93: BAY EQUITY LLC
A94: Acme Title and Escrow | B94: ACT | C94: COMMERCIAL | D94: 020-122-30 | E94: 5262237 | F94: 2722000 | G94: 44553 | H94: UMPQUA BANK
A95: Acme Title and Escrow | B95: ACT | C95: CONVENTIONAL | D95: 005-112-07 | E95: 5193347 | F95: 205000 | G95: 44363 | H95: BAY EQUITY LLC
A96: Acme Title and Escrow | B96: ACT | C96: CONVENTIONAL | D96: 086-471-06 | E96: 5227720 | F96: 192000 | G96: 44456 | H96: NEW AMERICAN FUNDING
A97: Acme Title and Escrow | B97: ACT | C97: CONVENTIONAL | D97: 556-611-03 | E97: 5171537 | F97: 276000 | G97: 44312 | H97: AMERICAN PACIFIC MORTGAGE CORPORATION
A98: Acme Title and Escrow | B98: ACT | C98: CONVENTIONAL | D98: 161-261-33 | E98: 5241993 | F98: 352000 | G98: 44496 | H98: BAY EQUITY LLC
A99: Acme Title and Escrow | B99: ACT | C99: CONVENTIONAL | D99: 089-261-05 | E99: 5228230 | F99: 367000 | G99: 44459 | H99: FINANCE OF AMERICA MORTGAGE LLC
A100: Acme Title and Escrow | B100: ACT | C100: CONVENTIONAL | D100: 035-622-05 | E100: 5150389 | F100: 306500 | G100: 44263 | H100: RESIDENTIAL BANCORP
A101: Acme Title and Escrow | B101: ACT | C101: CONVENTIONAL | D101: 518-392-08 | E101: 5130393 | F101: 210000 | G101: 44216 | H101: ONETRUST HOME LOANS
A102: Acme Title and Escrow | B102: ACT | C102: CONVENTIONAL | D102: 510-412-13 | E102: 5183572 | F102: 324000 | G102: 44337 | H102: BAY EQUITY LLC
A103: Acme Title and Escrow | B103: ACT | C103: CONVENTIONAL | D103: 143-142-25 | E103: 5129890 | F103: 390000 | G103: 44215 | H103: OMEGA MORTGAGE GROUP
A104: Acme Title and Escrow | B104: ACT | C104: CONVENTIONAL | D104: 005-111-01 | E104: 5130699 | F104: 285122 | G104: 44217 | H104: WOLFE FINANCIAL INC
A105: Acme Title and Escrow | B105: ACT | C105: CONVENTIONAL | D105: 550-492-35 | E105: 5195933 | F105: 339500 | G105: 44370 | H105: PARAMOUNT RESIDENTIAL MORTGAGE GROUP INC
A106: Acme Title and Escrow | B106: ACT | C106: CONVENTIONAL | D106: 044-153-07 | E106: 5226404 | F106: 255500 | G106: 44454 | H106: CALCON MUTUAL MORTGAGE LLC
A107: Acme Title and Escrow | B107: ACT | C107: CONVENTIONAL | D107: 035-631-06 | E107: 5182896 | F107: 290000 | G107: 44335 | H107: BAY EQUITY LLC
A108: Acme Title and Escrow | B108: ACT | C108: CONVENTIONAL | D108: 238-382-04 | E108: 5129818 | F108: 274000 | G108: 44215 | H108: ON Q FINANCIAL INC
A109: Acme Title and Escrow | B109: ACT | C109: CONVENTIONAL | D109: 402-631-07 | E109: 5148273 | F109: 383585 | G109: 44257 | H109: PARAMOUNT RESIDENTIAL MORTGAGE GROUP INC
A110: Acme Title and Escrow | B110: ACT | C110: CONVENTIONAL | D110: 023-510-08 | E110: 5157307 | F110: 525000 | G110: 44279 | H110: CALCON MUTUAL MORTGAGE LLC
A111: Acme Title and Escrow | B111: ACT | C111: CONVENTIONAL | D111: 047-032-34 | E111: 5205116 | F111: 462000 | G111: 44396 | H111: ALL WESTERN MORTGAGE INC
A112: Acme Title and Escrow | B112: ACT | C112: FHA | D112: 508-171-11 | E112: 5129880 | F112: 262417 | G112: 44215 | H112: GUILD MORTGAGE COMPANY LLC
A113: Acme Title and Escrow | B113: ACT | C113: CONVENTIONAL | D113: 039-148-01 | E113: 5199387 | F113: 610000 | G113: 44377 | H113: UNITED FEDERAL CREDIT UNION
A114: Acme Title and Escrow | B114: ACT | C114: CONVENTIONAL | D114: 010-512-46 | E114: 5126249 | F114: 225000 | G114: 44204 | H114: ONETRUST HOME LOANS
A115: Acme Title and Escrow | B115: ACT | C115: FHA | D115: 504-741-01 | E115: 5174706 | F115: 193325 | G115: 44316 | H115: PARAMOUNT RESIDENTIAL MORTGAGE GROUP INC
A116: Acme Title and Escrow | B116: ACT | C116: CONVENTIONAL | D116: 028-043-15 | E116: 5177631 | F116: 212500 | G116: 44326 | H116: BAY EQUITY LLC
A117: Acme Title and Escrow | B117: ACT | C117: CONVENTIONAL | D117: 001-431-17 | E117: 5199036 | F117: 317400 | G117: 44377 | H117: INFINITY EQUITY GROUP LLC
A118: Acme Title and Escrow | B118: ACT | C118: CONVENTIONAL | D118: 530-511-07 | E118: 5198883 | F118: 298000 | G118: 44377 | H118: INFINITY EQUITY GROUP LLC
A119: Acme Title and Escrow | B119: ACT | C119: CONVENTIONAL | D119: 043-271-17 | E119: 5252384 | F119: 257500 | G119: 44529 | H119: BAY EQUITY LLC
A120: Acme Title and Escrow | B120: ACT | C120: CONVENTIONAL | D120: 524-121-01 | E120: 5241987 | F120: 352000 | G120: 44496 | H120: BAY EQUITY LLC
A121: Acme Title and Escrow | B121: ACT | C121: CONVENTIONAL | D121: 140-952-16 | E121: 5154277 | F121: 449000 | G121: 44272 | H121: BAY EQUITY LLC
A122: Acme Title and Escrow | B122: ACT | C122: CONVENTIONAL | D122: 504-543-06 | E122: 5174262 | F122: 130000 | G122: 44316 | H122: INFINITY EQUITY GROUP INC
A123: Acme Title and Escrow | B123: ACT | C123: VA | D123: 021-081-11 | E123: 5199388 | F123: 447562 | G123: 44377 | H123: PARAMOUNT RESIDENTIAL MORTGAGE GROUP INC
A124: Acme Title and Escrow | B124: ACT | C124: CONVENTIONAL | D124: 090-122-10 | E124: 5199437 | F124: 80999 | G124: 44377 | H124: PARAMOUNT RESIDENTIAL MORTGAGE GROUP INC
A125: Acme Title and Escrow | B125: ACT | C125: CONVENTIONAL | D125: 125-600-04 | E125: 5263815 | F125: 647200 | G125: 44559 | H125: BAY EQUITY LLC
A126: Acme Title and Escrow | B126: ACT | C126: CONVENTIONAL | D126: 021-293-14 | E126: 5246191 | F126: 146000 | G126: 44508 | H126: WELLS FARGO BANK NA
A127: Acme Title and Escrow | B127: ACT | C127: CONVENTIONAL | D127: 140-342-03 | E127: 5175265 | F127: 150000 | G127: 44319 | H127: WELLS FARGO BANK NA
A128: Acme Title and Escrow | B128: ACT | C128: CONVENTIONAL | D128: 522-151-04 | E128: 5175772 | F128: 528000 | G128: 44320 | H128: PARAMOUNT RESIDENTIAL MORTGAGE GROUP INC
A129: Acme Title and Escrow | B129: ACT | C129: COMMERCIAL | D129: 015-304-10 | E129: 5198625 | F129: 448647.97 | G129: 44376 | H129: UMPQUA BANK
A130: Acme Title and Escrow | B130: ACT | C130: CONVENTIONAL | D130: 160-382-12 | E130: 5154290 | F130: 360000 | G130: 44272 | H130: BAY EQUITY LLC
A131: Acme Title and Escrow | B131: ACT | C131: CONVENTIONAL | D131: 212-082-02 | E131: 5153199 | F131: 162000 | G131: 44270 | H131: CALCON MUTUAL MORTGAGE LLC
A132: Acme Title and Escrow | B132: ACT | C132: CONVENTIONAL | D132: 013-462-11 | E132: 5254130 | F132: 132950 | G132: 44532 | H132: WELLS FARGO BANK NA
A133: Acme Title and Escrow | B133: ACT | C133: CONVENTIONAL | D133: 502-151-03 | E133: 5155089 | F133: 308000 | G133: 44274 | H133: PARAMOUNT RESIDENTIAL MORTGAGE GROUP INC
A134: Acme Title and Escrow | B134: ACT | C134: CONVENTIONAL | D134: 530-311-07 | E134: 5231776 | F134: 296000 | G134: 44468 | H134: BAY EQUITY LLC
A135: Acme Title and Escrow | B135: ACT | C135: CONVENTIONAL | D135: 085-042-49 | E135: 5175244 | F135: 125000 | G135: 44319 | H135: CITADEL SERVICING CORPORATION
A136: Acme Title and Escrow | B136: ACT | C136: CONVENTIONAL | D136: 006-093-34 | E136: 5198100 | F136: 210000 | G136: 44376 | H136: FINANCE OF AMERICA MORTGAGE LLC
A137: Acme Title and Escrow | B137: ACT | C137: CONVENTIONAL | D137: 045-321-06 | E137: 5200765 | F137: 540000 | G137: 44383 | H137: BAY EQUITY LLC
A138: Acme Title and Escrow | B138: ACT | C138: CONVENTIONAL | D138: 550-502-08 | E138: 5198025 | F138: 281229 | G138: 44376 | H138: ISERVE RESIDENTIAL LENDING LLC
A139: Acme Title and Escrow | B139: ACT | C139: CONVENTIONAL | D139: 550-354-30 | E139: 5263359 | F139: 188000 | G139: 44559 | H139: WELLS FARGO BANK NA
A140: Acme Title and Escrow | B140: ACT | C140: CONVENTIONAL | D140: 049-514-02 | E140: 5153213 | F140: 328500 | G140: 44270 | H140: GREATER NEVADA MORTGAGE
A141: Acme Title and Escrow | B141: ACT | C141: VA | D141: 556-441-36 | E141: 5201206 | F141: 242774 | G141: 44384 | H141: WOLFE FINANCIAL INC
A142: Acme Title and Escrow | B142: ACT | C142: CONVENTIONAL | D142: 566-141-04 | E142: 5180765 | F142: 290000 | G142: 44330 | H142: ALL WESTERN MORTGAGE INC
A143: Acme Title and Escrow | B143: ACT | C143: CONVENTIONAL | D143: 526-072-15 | E143: 5155088 | F143: 234750 | G143: 44274 | H143: CARDINAL FINANCIAL COMPANY LIMITED PARTNERSHIP
A144: Acme Title and Escrow | B144: ACT | C144: CONVENTIONAL | D144: 240-011-19 | E144: 5153571 | F144: 102000 | G144: 44271 | H144: WELLS FARGO BANK NA
A145: Acme Title and Escrow | B145: ACT | C145: CONVENTIONAL | D145: 005-076-08 | E145: 5174432 | F145: 230000 | G145: 44316 | H145: LOANDEPOT.COM LLC
A146: Acme Title and Escrow | B146: ACT | C146: CONVENTIONAL | D146: 018-153-21 | E146: 5177901 | F146: 398232 | G146: 44326 | H146: LOANDEPOT.COM LLC
A147: Acme Title and Escrow | B147: ACT | C147: FHA | D147: 520-220-26 | E147: 5155090 | F147: 298127 | G147: 44274 | H147: PARAMOUNT RESIDENTIAL MORTGAGE GROUP INC
A148: Acme Title and Escrow | B148: ACT | C148: VA | D148: 085-702-11 | E148: 5205992 | F148: 200000 | G148: 44397 | H148: NAVY FEDERAL CREDIT UNION
A149: Acme Title and Escrow | B149: ACT | C149: CONVENTIONAL | D149: 204-492-24 | E149: 5125192 | F149: 241000 | G149: 44202 | H149: ONETRUST HOME LOANS
A150: Acme Title and Escrow | B150: ACT | C150: CONVENTIONAL | D150: 009-471-17 | E150: 5223822 | F150: 478500 | G150: 44447 | H150: CALCON MUTUAL MORTGAGE LLC
A151: Acme Title and Escrow | B151: ACT | C151: CONVENTIONAL | D151: 028-162-25 | E151: 5147249 | F151: 215000 | G151: 44253 | H151: FINANCE OF AMERICA MORTGAGE LLC
A152: Acme Title and Escrow | B152: ACT | C152: CONVENTIONAL | D152: 036-151-09 | E152: 5255222 | F152: 320000 | G152: 44536 | H152: MORTGAGE ELECTRONIC REGISTRATION SYSTEMS INC NOMINEE
A153: Acme Title and Escrow | B153: ACT | C153: CONVENTIONAL | D153: 148-061-35 | E153: 5184381 | F153: 1650000 | G153: 44340 | H153: BANK OF AMERICA NA
A154: Acme Title and Escrow | B154: ACT | C154: CONVENTIONAL | D154: 044-124-04 | E154: 5224205 | F154: 239000 | G154: 44448 | H154: BAY EQUITY LLC
A155: Acme Title and Escrow | B155: ACT | C155: CONVENTIONAL | D155: 090-293-35 | E155: 5189010 | F155: 104000 | G155: 44351 | H155: WELLS FARGO BANK NA
A156: Acme Title and Escrow | B156: ACT | C156: CONVENTIONAL | D156: 141-133-03 | E156: 5207779 | F156: 390400 | G156: 44403 | H156: BAY EQUITY LLC
A157: Acme Title and Escrow | B157: ACT | C157: CONVENTIONAL | D157: 003-353-11 | E157: 5158910 | F157: 238500 | G157: 44284 | H157: CALCON MUTUAL MORTGAGE LLC
A158: Acme Title and Escrow | B158: ACT | C158: CONVENTIONAL | D158: 550-291-01 | E158: 5223837 | F158: 317000 | G158: 44447 | H158: NEW AMERICAN FUNDING
A159: Acme Title and Escrow | B159: ACT | C159: CONVENTIONAL | D159: 087-166-09 | E159: 5207759 | F159: 188000 | G159: 44403 | H159: NEW AMERICAN FUNDING
A160: Acme Title and Escrow | B160: ACT | C160: CONVENTIONAL | D160: 552-226-14 | E160: 5207802 | F160: 279750 | G160: 44403 | H160: CARDINAL FINANCIAL COMPANY LIMITED PARTNERSHIP
A161: Acme Title and Escrow | B161: ACT | C161: CONVENTIONAL | D161: 140-302-09 | E161: 5147309 | F161: 298000 | G161: 44253 | H161: CALCON MUTUAL MORTGAGE LLC
A162: Acme Title and Escrow | B162: ACT | C162: CONVENTIONAL | D162: 224-042-01 | E162: 5164848 | F162: 180000 | G162: 44298 | H162: BAY EQUITY LLC
A163: Acme Title and Escrow | B163: ACT | C163: CONVENTIONAL | D163: 005-082-05 | E163: 5222891 | F163: 155000 | G163: 44442 | H163: ALL WESTERN MORTGAGE INC
A164: Acme Title and Escrow | B164: ACT | C164: CONVENTIONAL | D164: 028-383-17 | E164: 5210158 | F164: 280000 | G164: 44407 | H164: GUILD MORTGAGE COMPANY LLC
A165: Acme Title and Escrow | B165: ACT | C165: FHA | D165: 556-132-09 | E165: 5210162 | F165: 309807 | G165: 44407 | H165: PARAMOUNT RESIDENTIAL MORTGAGE GROUP INC
A166: Acme Title and Escrow | B166: ACT | C166: CONVENTIONAL | D166: 089-191-11 | E166: 5194312 | F166: 191000 | G166: 44365 | H166: AXIA FINANCIAL LLC
A167: Acme Title and Escrow | B167: ACT | C167: CONVENTIONAL | D167: 021-295-17 | E167: 5223866 | F167: 283000 | G167: 44447 | H167: TJC MORTGAGE INC
A168: Acme Title and Escrow | B168: ACT | C168: CONVENTIONAL | D168: 145-162-12 | E168: 5195275 | F168: 490000 | G168: 44369 | H168: BAY EQUITY LLC
A169: Acme Title and Escrow | B169: ACT | C169: CONVENTIONAL | D169: 145-151-08 | E169: 5261204 | F169: 620000 | G169: 44551 | H169: CALCON MUTUAL MORTGAGE LLC
A170: Acme Title and Escrow | B170: ACT | C170: CONVENTIONAL | D170: 076-690-66 | E170: 5158213 | F170: 265000 | G170: 44281 | H170: GREATER NEVADA MORTGAGE
A171: Acme Title and Escrow | B171: ACT | C171: CONVENTIONAL | D171: 086-562-31 | E171: 5223339 | F171: 255000 | G171: 44446 | H171: UNITED WHOLESALE MORTGAGE LLC
A172: Acme Title and Escrow | B172: ACT | C172: CONVENTIONAL | D172: 021-412-04 | E172: 5223287 | F172: 339000 | G172: 44446 | H172: PRIMELENDING
A173: Acme Title and Escrow | B173: ACT | C173: CONVENTIONAL | D173: 041-051-59 | E173: 5167733 | F173: 1287000 | G173: 44302 | H173: BAY EQUITY LLC
A174: Acme Title and Escrow | B174: ACT | C174: FHA | D174: 035-741-11 | E174: 5255194 | F174: 301587 | G174: 44536 | H174: MOVEMENT MORTGAGE LLC
A175: Acme Title and Escrow | B175: ACT | C175: CONVENTIONAL | D175: 156-062-03 | E175: 5192573 | F175: 886500 | G175: 44361 | H175: GUILD MORTGAGE COMPANY LLC
A176: Acme Title and Escrow | B176: ACT | C176: CONVENTIONAL | D176: 534-531-09 | E176: 5158149 | F176: 220000 | G176: 44281 | H176: BAY EQUITY LLC
A177: Acme Title and Escrow | B177: ACT | C177: CONVENTIONAL | D177: 510-371-03 | E177: 5147243 | F177: 160000 | G177: 44253 | H177: DATE MORTGAGE INC
A178: Acme Title and Escrow | B178: ACT | C178: CONVENTIONAL | D178: 039-133-24 | E178: 5169256 | F178: 479000 | G178: 44306 | H178: BAY EQUITY LLC
A179: Acme Title and Escrow | B179: ACT | C179: CONVENTIONAL | D179: 556-511-13 | E179: 5147751 | F179: 279900 | G179: 44256 | H179: PARAMOUNT RESIDENTIAL MORTGAGE GROUP INC
A180: Acme Title and Escrow | B180: ACT | C180: CONVENTIONAL | D180: 087-662-05 | E180: 5225252 | F180: 153600 | G180: 44452 | H180: CALCON MUTUAL MORTGAGE LLC
A181: Acme Title and Escrow | B181: ACT | C181: CONVENTIONAL | D181: 160-191-13 | E181: 5169319 | F181: 448000 | G181: 44306 | H181: BAY EQUITY LLC
A182: Acme Title and Escrow | B182: ACT | C182: CONVENTIONAL | D182: 018-131-18 | E182: 5147482 | F182: 397000 | G182: 44253 | H182: GUILD MORTGAGE COMPANY LLC
A183: Acme Title and Escrow | B183: ACT | C183: CONVENTIONAL | D183: 026-751-10 | E183: 5131461 | F183: 384000 | G183: 44218 | H183: PARAMOUNT RESIDENTIAL MORTGAGE GROUP INC
A184: Acme Title and Escrow | B184: ACT | C184: CONVENTIONAL | D184: 212-074-01 | E184: 5224892 | F184: 159000 | G184: 44449 | H184: ROCKET MORTGAGE LLC
A185: Acme Title and Escrow | B185: ACT | C185: CONVENTIONAL | D185: 504-611-01 | E185: 5220642 | F185: 260500 | G185: 44438 | H185: UNITED FEDERAL CREDIT UNION
A186: Acme Title and Escrow | B186: ACT | C186: CONVENTIONAL | D186: 033-093-16 | E186: 5208294 | F186: 49962 | G186: 44404 | H186: WELLS FARGO BANK NA
A187: Acme Title and Escrow | B187: ACT | C187: CONVENTIONAL | D187: 003-544-16 | E187: 5221415 | F187: 155000 | G187: 44439 | H187: GUILD MORTGAGE COMPANY LLC
A188: Acme Title and Escrow | B188: ACT | C188: CONVENTIONAL | D188: 165-295-01 | E188: 5193481 | F188: 496500 | G188: 44363 | H188: INFINITY EQUITY GROUP LLC
A189: Acme Title and Escrow | B189: ACT | C189: CONVENTIONAL | D189: 008-155-15 | E189: 5255317 | F189: 155000 | G189: 44536 | H189: WELLS FARGO BANK NA
A190: Acme Title and Escrow | B190: ACT | C190: CONVENTIONAL | D190: 087-212-03 | E190: 5222037 | F190: 250000 | G190: 44440 | H190: UNITED FEDERAL CREDIT UNION
A191: Acme Title and Escrow | B191: ACT | C191: CONVENTIONAL | D191: 165-296-01 | E191: 5166080 | F191: 512500 | G191: 44300 | H191: CALCON MUTUAL MORTGAGE LLC
A192: Acme Title and Escrow | B192: ACT | C192: HOME EQUITY | D192: 204-491-01 | E192: 5165986 | F192: 23074 | G192: 44300 | H192: NEVADA STATE HOUSING DIVISION
A193: Acme Title and Escrow | B193: ACT | C193: CONVENTIONAL | D193: 530-311-02 | E193: 5210157 | F193: 334000 | G193: 44407 | H193: GUILD MORTGAGE COMPANY LLC
A194: Acme Title and Escrow | B194: ACT | C194: CONVENTIONAL | D194: 520-243-05 | E194: 5220819 | F194: 199900 | G194: 44438 | H194: PARAMOUNT RESIDENTIAL MORTGAGE GROUP INC
A195: Acme Title and Escrow | B195: ACT | C195: CONVENTIONAL | D195: 011-527-05 | E195: 5248205 | F195: 261000 | G195: 44515 | H195: FAIRWAY INDEPENDENT MORTGAGE CORPORATION
A196: Acme Title and Escrow | B196: ACT | C196: CONVENTIONAL | D196: 002-065-11 | E196: 5236133 | F196: 496500 | G196: 44481 | H196: BAY EQUITY LLC
A197: Acme Title and Escrow | B197: ACT | C197: VA | D197: 002-484-23 | E197: 5165829 | F197: 333000 | G197: 44300 | H197: GUILD MORTGAGE COMPANY LLC
A198: Acme Title and Escrow | B198: ACT | C198: FHA | D198: 087-094-06 | E198: 5192817 | F198: 256077 | G198: 44362 | H198: GUILD MORTGAGE COMPANY LLC
A199: Acme Title and Escrow | B199: ACT | C199: CONVENTIONAL | D199: 238-353-01 | E199: 5210153 | F199: 495000 | G199: 44407 | H199: BAY EQUITY LLC
A200: Acme Title and Escrow | B200: ACT | C200: CONVENTIONAL | D200: 556-162-10 | E200: 5260351 | F200: 310000 | G200: 44550 | H200: WELLS FARGO BANK NA
... 11005 more rows

Sheet SALESLOANSLIST (hidden)
A1: FULLNAME | B1: RECBY | C1: AMOUNT | D1: RECDATE | E1: DOCTYPE | L1: 24440
A2: Acme Title and Escrow | B2: ACT | C2: 245000 | D2: 44253 | E2: Deed
A3: Acme Title and Escrow | B3: ACT | C3: 335000 | D3: 44216 | E3: Deed
A4: Acme Title and Escrow | B4: ACT | C4: 280000 | D4: 44211 | E4: Deed
A5: Acme Title and Escrow | B5: ACT | C5: 290500 | D5: 44274 | E5: Deed
A6: Acme Title and Escrow | B6: ACT | C6: 892000 | D6: 44307 | E6: Deed
A7: Acme Title and Escrow | B7: ACT | C7: 405000 | D7: 44224 | E7: Deed
A8: Acme Title and Escrow | B8: ACT | C8: 135000 | D8: 44270 | E8: Deed
A9: Acme Title and Escrow | B9: ACT | C9: 265000 | D9: 44315 | E9: Deed
A10: Acme Title and Escrow | B10: ACT | C10: 220000 | D10: 44263 | E10: Deed
A11: Acme Title and Escrow | B11: ACT | C11: 410000 | D11: 44202 | E11: Deed
A12: Acme Title and Escrow | B12: ACT | C12: 346500 | D12: 44253 | E12: Deed
A13: Acme Title and Escrow | B13: ACT | C13: 310000 | D13: 44256 | E13: Deed
A14: Acme Title and Escrow | B14: ACT | C14: 118000 | D14: 44256 | E14: Deed
A15: Acme Title and Escrow | B15: ACT | C15: 182500 | D15: 44246 | E15: Deed
A16: Acme Title and Escrow | B16: ACT | C16: 200000 | D16: 44244 | E16: Deed
A17: Acme Title and Escrow | B17: ACT | C17: 700000 | D17: 44211 | E17: Deed
A18: Acme Title and Escrow | B18: ACT | C18: 360000 | D18: 44267 | E18: Deed
A19: Acme Title and Escrow | B19: ACT | C19: 340000 | D19: 44329 | E19: Deed
A20: Acme Title and Escrow | B20: ACT | C20: 365000 | D20: 44279 | E20: Deed
A21: Acme Title and Escrow | B21: ACT | C21: 151000 | D21: 44203 | E21: Deed
A22: Acme Title and Escrow | B22: ACT | C22: 260000 | D22: 44243 | E22: Deed
A23: Acme Title and Escrow | B23: ACT | C23: 955000 | D23: 44337 | E23: Deed
A24: Acme Title and Escrow | B24: ACT | C24: 575000 | D24: 44337 | E24: Deed
A25: Acme Title and Escrow | B25: ACT | C25: 285000 | D25: 44216 | E25: Deed
A26: Acme Title and Escrow | B26: ACT | C26: 330000 | D26: 44302 | E26: Deed
A27: Acme Title and Escrow | B27: ACT | C27: 163500 | D27: 44302 | E27: Deed
A28: Acme Title and Escrow | B28: ACT | C28: 375000 | D28: 44210 | E28: Deed
A29: Acme Title and Escrow | B29: ACT | C29: 314000 | D29: 44267 | E29: Deed
A30: Acme Title and Escrow | B30: ACT | C30: 500000 | D30: 44327 | E30: Deed
A31: Acme Title and Escrow | B31: ACT | C31: 130000 | D31: 44217 | E31: Deed
A32: Acme Title and Escrow | B32: ACT | C32: 420000 | D32: 44211 | E32: Deed
A33: Acme Title and Escrow | B33: ACT | C33: 166000 | D33: 44343 | E33: Deed
A34: Acme Title and Escrow | B34: ACT | C34: 130000 | D34: 44253 | E34: Deed
A35: Acme Title and Escrow | B35: ACT | C35: 530000 | D35: 44330 | E35: Deed
A36: Acme Title and Escrow | B36: ACT | C36: 370000 | D36: 44211 | E36: Deed
A37: Acme Title and Escrow | B37: ACT | C37: 476000 | D37: 44340 | E37: Deed
A38: Acme Title and Escrow | B38: ACT | C38: 402000 | D38: 44272 | E38: Deed
A39: Acme Title and Escrow | B39: ACT | C39: 190000 | D39: 44340 | E39: Deed
A40: Acme Title and Escrow | B40: ACT | C40: 585000 | D40: 44301 | E40: Deed
A41: Acme Title and Escrow | B41: ACT | C41: 415000 | D41: 44272 | E41: Deed
A42: Acme Title and Escrow | B42: ACT | C42: 395000 | D42: 44281 | E42: Deed
A43: Acme Title and Escrow | B43: ACT | C43: 495000 | D43: 44300 | E43: Deed
A44: Acme Title and Escrow | B44: ACT | C44: 415000 | D44: 44253 | E44: Deed
A45: Acme Title and Escrow | B45: ACT | C45: 415000 | D45: 44316 | E45: Deed
A46: Acme Title and Escrow | B46: ACT | C46: 413000 | D46: 44200 | E46: Deed
A47: Acme Title and Escrow | B47: ACT | C47: 425000 | D47: 44257 | E47: Deed
A48: Acme Title and Escrow | B48: ACT | C48: 461000 | D48: 44315 | E48: Deed
A49: Acme Title and Escrow | B49: ACT | C49: 450000 | D49: 44333 | E49: Deed
A50: Acme Title and Escrow | B50: ACT | C50: 437000 | D50: 44305 | E50: Deed
A51: Acme Title and Escrow | B51: ACT | C51: 415000 | D51: 44249 | E51: Deed
A52: Acme Title and Escrow | B52: ACT | C52: 500000 | D52: 44249 | E52: Deed
A53: Acme Title and Escrow | B53: ACT | C53: 400000 | D53: 44271 | E53: Deed
A54: Acme Title and Escrow | B54: ACT | C54: 309000 | D54: 44211 | E54: Deed
A55: Acme Title and Escrow | B55: ACT | C55: 422500 | D55: 44281 | E55: Deed
A56: Acme Title and Escrow | B56: ACT | C56: 255000 | D56: 44344 | E56: Deed
A57: Acme Title and Escrow | B57: ACT | C57: 200000 | D57: 44330 | E57: Deed
A58: Acme Title and Escrow | B58: ACT | C58: 346500 | D58: 44224 | E58: Deed
A59: Acme Title and Escrow | B59: ACT | C59: 785000 | D59: 44253 | E59: Deed
A60: Acme Title and Escrow | B60: ACT | C60: 637000 | D60: 44284 | E60: Deed
A61: Acme Title and Escrow | B61: ACT | C61: 490000 | D61: 44301 | E61: Deed
A62: Acme Title and Escrow | B62: ACT | C62: 350000 | D62: 44341 | E62: Deed
A63: Acme Title and Escrow | B63: ACT | C63: 200000 | D63: 44309 | E63: Deed
A64: Acme Title and Escrow | B64: ACT | C64: 1200000 | D64: 44291 | E64: Deed
A65: Acme Title and Escrow | B65: ACT | C65: 450000 | D65: 44216 | E65: Deed
A66: Acme Title and Escrow | B66: ACT | C66: 479000 | D66: 44288 | E66: Deed
A67: Acme Title and Escrow | B67: ACT | C67: 355000 | D67: 44323 | E67: Deed
A68: Acme Title and Escrow | B68: ACT | C68: 245000 | D68: 44222 | E68: Deed
A69: Acme Title and Escrow | B69: ACT | C69: 265000 | D69: 44229 | E69: Deed
A70: Acme Title and Escrow | B70: ACT | C70: 235000 | D70: 44321 | E70: Deed
A71: Acme Title and Escrow | B71: ACT | C71: 260000 | D71: 44309 | E71: Deed
A72: Acme Title and Escrow | B72: ACT | C72: 410000 | D72: 44295 | E72: Deed
A73: Acme Title and Escrow | B73: ACT | C73: 410000 | D73: 44312 | E73: Deed
A74: Acme Title and Escrow | B74: ACT | C74: 320000 | D74: 44279 | E74: Deed
A75: Acme Title and Escrow | B75: ACT | C75: 245000 | D75: 44266 | E75: Deed
A76: Acme Title and Escrow | B76: ACT | C76: 330000 | D76: 44260 | E76: Deed
A77: Acme Title and Escrow | B77: ACT | C77: 545000 | D77: 44252 | E77: Deed
A78: Acme Title and Escrow | B78: ACT | C78: 357000 | D78: 44208 | E78: Deed
A79: Acme Title and Escrow | B79: ACT | C79: 230000 | D79: 44207 | E79: Deed
A80: Acme Title and Escrow | B80: ACT | C80: 340000 | D80: 44309 | E80: Deed
A81: Acme Title and Escrow | B81: ACT | C81: 112000 | D81: 44231 | E81: Deed
A82: Acme Title and Escrow | B82: ACT | C82: 291000 | D82: 44266 | E82: Deed
A83: Acme Title and Escrow | B83: ACT | C83: 300000 | D83: 44278 | E83: Deed
A84: Acme Title and Escrow | B84: ACT | C84: 340000 | D84: 44207 | E84: Deed
A85: Acme Title and Escrow | B85: ACT | C85: 155000 | D85: 44236 | E85: Deed
A86: Acme Title and Escrow | B86: ACT | C86: 242000 | D86: 44286 | E86: Deed
A87: Acme Title and Escrow | B87: ACT | C87: 850000 | D87: 44400 | E87: Deed
A88: Acme Title and Escrow | B88: ACT | C88: 245000 | D88: 44505 | E88: Deed
A89: Acme Title and Escrow | B89: ACT | C89: 358000 | D89: 44365 | E89: Deed
A90: Acme Title and Escrow | B90: ACT | C90: 290000 | D90: 44365 | E90: Deed
A91: Acme Title and Escrow | B91: ACT | C91: 418000 | D91: 44365 | E91: Deed
A92: Acme Title and Escrow | B92: ACT | C92: 520000 | D92: 44505 | E92: Deed
A93: Acme Title and Escrow | B93: ACT | C93: 720000 | D93: 44459 | E93: Deed
A94: Acme Title and Escrow | B94: ACT | C94: 365000 | D94: 44459 | E94: Deed
A95: Acme Title and Escrow | B95: ACT | C95: 1265000 | D95: 44490 | E95: Deed
A96: Acme Title and Escrow | B96: ACT | C96: 405000 | D96: 44503 | E96: Deed
A97: Acme Title and Escrow | B97: ACT | C97: 440000 | D97: 44497 | E97: Deed
A98: Acme Title and Escrow | B98: ACT | C98: 585000 | D98: 44453 | E98: Deed
A99: Acme Title and Escrow | B99: ACT | C99: 320000 | D99: 44375 | E99: Deed
A100: Acme Title and Escrow | B100: ACT | C100: 440000 | D100: 44407 | E100: Deed
A101: Acme Title and Escrow | B101: ACT | C101: 330000 | D101: 44448 | E101: Deed
A102: Acme Title and Escrow | B102: ACT | C102: 490000 | D102: 44447 | E102: Deed
A103: Acme Title and Escrow | B103: ACT | C103: 395000 | D103: 44488 | E103: Deed
A104: Acme Title and Escrow | B104: ACT | C104: 445000 | D104: 44399 | E104: Deed
A105: Acme Title and Escrow | B105: ACT | C105: 510000 | D105: 44462 | E105: Deed
A106: Acme Title and Escrow | B106: ACT | C106: 379000 | D106: 44463 | E106: Deed
A107: Acme Title and Escrow | B107: ACT | C107: 410000 | D107: 44463 | E107: Deed
A108: Acme Title and Escrow | B108: ACT | C108: 370000 | D108: 44419 | E108: Deed
A109: Acme Title and Escrow | B109: ACT | C109: 250000 | D109: 44463 | E109: Deed
A110: Acme Title and Escrow | B110: ACT | C110: 249000 | D110: 44362 | E110: Deed
A111: Acme Title and Escrow | B111: ACT | C111: 275000 | D111: 44463 | E111: Deed
A112: Acme Title and Escrow | B112: ACT | C112: 475000 | D112: 44398 | E112: Deed
A113: Acme Title and Escrow | B113: ACT | C113: 490000 | D113: 44462 | E113: Deed
A114: Acme Title and Escrow | B114: ACT | C114: 290000 | D114: 44504 | E114: Deed
A115: Acme Title and Escrow | B115: ACT | C115: 390000 | D115: 44419 | E115: Deed
A116: Acme Title and Escrow | B116: ACT | C116: 295000 | D116: 44363 | E116: Deed
A117: Acme Title and Escrow | B117: ACT | C117: 400000 | D117: 44397 | E117: Deed
A118: Acme Title and Escrow | B118: ACT | C118: 530000 | D118: 44460 | E118: Deed
A119: Acme Title and Escrow | B119: ACT | C119: 240000 | D119: 44364 | E119: Deed
A120: Acme Title and Escrow | B120: ACT | C120: 460000 | D120: 44456 | E120: Deed
A121: Acme Title and Escrow | B121: ACT | C121: 369900 | D121: 44459 | E121: Deed
A122: Acme Title and Escrow | B122: ACT | C122: 235000 | D122: 44376 | E122: Deed
A123: Acme Title and Escrow | B123: ACT | C123: 301500 | D123: 44428 | E123: Deed
A124: Acme Title and Escrow | B124: ACT | C124: 499900 | D124: 44378 | E124: Deed
A125: Acme Title and Escrow | B125: ACT | C125: 185000 | D125: 44432 | E125: Deed
A126: Acme Title and Escrow | B126: ACT | C126: 539000 | D126: 44501 | E126: Deed
A127: Acme Title and Escrow | B127: ACT | C127: 435000 | D127: 44432 | E127: Deed
A128: Acme Title and Escrow | B128: ACT | C128: 541000 | D128: 44372 | E128: Deed
A129: Acme Title and Escrow | B129: ACT | C129: 370000 | D129: 44501 | E129: Deed
A130: Acme Title and Escrow | B130: ACT | C130: 343000 | D130: 44488 | E130: Deed
A131: Acme Title and Escrow | B131: ACT | C131: 290000 | D131: 44375 | E131: Deed
A132: Acme Title and Escrow | B132: ACT | C132: 420000 | D132: 44434 | E132: Deed
A133: Acme Title and Escrow | B133: ACT | C133: 350000 | D133: 44428 | E133: Deed
A134: Acme Title and Escrow | B134: ACT | C134: 700000 | D134: 44427 | E134: Deed
A135: Acme Title and Escrow | B135: ACT | C135: 305000 | D135: 44377 | E135: Deed
A136: Acme Title and Escrow | B136: ACT | C136: 1800000 | D136: 44491 | E136: Deed
A137: Acme Title and Escrow | B137: ACT | C137: 1850000 | D137: 44425 | E137: Deed
A138: Acme Title and Escrow | B138: ACT | C138: 225000 | D138: 44503 | E138: Deed
A139: Acme Title and Escrow | B139: ACT | C139: 7600000 | D139: 44372 | E139: Deed
A140: Acme Title and Escrow | B140: ACT | C140: 440000 | D140: 44491 | E140: Deed
A141: Acme Title and Escrow | B141: ACT | C141: 400000 | D141: 44400 | E141: Deed
A142: Acme Title and Escrow | B142: ACT | C142: 352200 | D142: 44375 | E142: Deed
A143: Acme Title and Escrow | B143: ACT | C143: 550000 | D143: 44442 | E143: Deed
A144: Acme Title and Escrow | B144: ACT | C144: 415000 | D144: 44442 | E144: Deed
A145: Acme Title and Escrow | B145: ACT | C145: 320000 | D145: 44400 | E145: Deed
A146: Acme Title and Escrow | B146: ACT | C146: 550000 | D146: 44489 | E146: Deed
A147: Acme Title and Escrow | B147: ACT | C147: 515000 | D147: 44439 | E147: Deed
A148: Acme Title and Escrow | B148: ACT | C148: 331000 | D148: 44400 | E148: Deed
A149: Acme Title and Escrow | B149: ACT | C149: 1996000 | D149: 44404 | E149: Deed
A150: Acme Title and Escrow | B150: ACT | C150: 519900 | D150: 44421 | E150: Deed
A151: Acme Title and Escrow | B151: ACT | C151: 180000 | D151: 44404 | E151: Deed
A152: Acme Title and Escrow | B152: ACT | C152: 1299000 | D152: 44407 | E152: Deed
A153: Acme Title and Escrow | B153: ACT | C153: 176827.5 | D153: 44438 | E153: Deed
A154: Acme Title and Escrow | B154: ACT | C154: 480000 | D154: 44403 | E154: Deed
A155: Acme Title and Escrow | B155: ACT | C155: 400000 | D155: 44379 | E155: Deed
A156: Acme Title and Escrow | B156: ACT | C156: 615000 | D156: 44403 | E156: Deed
A157: Acme Title and Escrow | B157: ACT | C157: 538000 | D157: 44371 | E157: Deed
A158: Acme Title and Escrow | B158: ACT | C158: 425000 | D158: 44446 | E158: Deed
A159: Acme Title and Escrow | B159: ACT | C159: 705000 | D159: 44439 | E159: Deed
A160: Acme Title and Escrow | B160: ACT | C160: 360000 | D160: 44469 | E160: Deed
A161: Acme Title and Escrow | B161: ACT | C161: 400000 | D161: 44468 | E161: Deed
A162: Acme Title and Escrow | B162: ACT | C162: 170000 | D162: 44357 | E162: Deed
A163: Acme Title and Escrow | B163: ACT | C163: 275000 | D163: 44482 | E163: Deed
A164: Acme Title and Escrow | B164: ACT | C164: 187000 | D164: 44475 | E164: Deed
A165: Acme Title and Escrow | B165: ACT | C165: 391000 | D165: 44386 | E165: Deed
A166: Acme Title and Escrow | B166: ACT | C166: 777000 | D166: 44414 | E166: Deed
A167: Acme Title and Escrow | B167: ACT | C167: 460000 | D167: 44357 | E167: Deed
A168: Acme Title and Escrow | B168: ACT | C168: 340000 | D168: 44483 | E168: Deed
A169: Acme Title and Escrow | B169: ACT | C169: 267000 | D169: 44477 | E169: Deed
A170: Acme Title and Escrow | B170: ACT | C170: 400000 | D170: 44469 | E170: Deed
A171: Acme Title and Escrow | B171: ACT | C171: 350000 | D171: 44483 | E171: Deed
A172: Acme Title and Escrow | B172: ACT | C172: 492000 | D172: 44470 | E172: Deed
A173: Acme Title and Escrow | B173: ACT | C173: 320000 | D173: 44473 | E173: Deed
A174: Acme Title and Escrow | B174: ACT | C174: 385000 | D174: 44356 | E174: Deed
A175: Acme Title and Escrow | B175: ACT | C175: 391000 | D175: 44351 | E175: Deed
A176: Acme Title and Escrow | B176: ACT | C176: 710000 | D176: 44481 | E176: Deed
A177: Acme Title and Escrow | B177: ACT | C177: 387500 | D177: 44482 | E177: Deed
A178: Acme Title and Escrow | B178: ACT | C178: 465000 | D178: 44468 | E178: Deed
A179: Acme Title and Escrow | B179: ACT | C179: 130000 | D179: 44419 | E179: Deed
A180: Acme Title and Escrow | B180: ACT | C180: 370000 | D180: 44391 | E180: Deed
A181: Acme Title and Escrow | B181: ACT | C181: 572000 | D181: 44474 | E181: Deed
A182: Acme Title and Escrow | B182: ACT | C182: 365000 | D182: 44377 | E182: Deed
A183: Acme Title and Escrow | B183: ACT | C183: 1600000 | D183: 44396 | E183: Deed
A184: Acme Title and Escrow | B184: ACT | C184: 315000 | D184: 44483 | E184: Deed
A185: Acme Title and Escrow | B185: ACT | C185: 85000 | D185: 44393 | E185: Deed
A186: Acme Title and Escrow | B186: ACT | C186: 775000 | D186: 44392 | E186: Deed
A187: Acme Title and Escrow | B187: ACT | C187: 750000 | D187: 44386 | E187: Deed
A188: Acme Title and Escrow | B188: ACT | C188: 625000 | D188: 44386 | E188: Deed
A189: Acme Title and Escrow | B189: ACT | C189: 245500 | D189: 44348 | E189: Deed
A190: Acme Title and Escrow | B190: ACT | C190: 345000 | D190: 44393 | E190: Deed
A191: Acme Title and Escrow | B191: ACT | C191: 408000 | D191: 44470 | E191: Deed
A192: Acme Title and Escrow | B192: ACT | C192: 450000 | D192: 44358 | E192: Deed
A193: Acme Title and Escrow | B193: ACT | C193: 627500 | D193: 44477 | E193: Deed
A194: Acme Title and Escrow | B194: ACT | C194: 600000 | D194: 44358 | E194: Deed
A195: Acme Title and Escrow | B195: ACT | C195: 355000 | D195: 44470 | E195: Deed
A196: Acme Title and Escrow | B196: ACT | C196: 360000 | D196: 44469 | E196: Deed
A197: Acme Title and Escrow | B197: ACT | C197: 280000 | D197: 44393 | E197: Deed
A198: Acme Title and Escrow | B198: ACT | C198: 455000 | D198: 44358 | E198: Deed
A199: Acme Title and Escrow | B199: ACT | C199: 487500 | D199: 44348 | E199: Deed
A200: Acme Title and Escrow | B200: ACT | C200: 635000 | D200: 44392 | E200: Deed
... 4300 more rows
